{"text_format":"1","workbook":"xlsx","n_sheets":6,"sheets":["Vstupné údaje","Výsledky MUŽI","Výsledky ŽENY","Výsledky MUŽI nad 35 rokov","Výsledky DORASTENCI","Výsledky DORASTENKY"],"not_rendered":{"charts":0,"images":0,"macros":1,"external_links":0,"defined_names":0,"comments":0,"pivot_tables":0},"unopened":[],"bounds":{"document_bytes":16777216,"sheet_cells":100000,"rows_first":2000,"rows_last":500,"rows_between":2000,"halvings":0,"cell_chars":16384,"cell_head_chars":4096},"cells_cut":0,"cells_raw":0,"read":"whole","date_system":"1900"}

{"sheet":"Vstupné údaje","index":0,"n_rows":7,"n_cols":2,"rows_kept":7,"cut":false,"hidden":false,"merged":[[0,0,0,1]]}
["Vstupné údaje"]
[]
["Požadovaný údaj","Hodnota"]
["Názov súťaže","O putovný pohár starostu obce Lednica (10. kolo SMHL 2024)"]
["Dátum","2024-07-21"]
["Začiatok","14:00:00"]
["Kolo v ročníku",10]

{"sheet":"Výsledky MUŽI","index":1,"n_rows":30,"n_cols":13,"rows_kept":30,"cut":false,"hidden":false,"merged":[[0,0,0,7],[1,0,1,7],[0,12,1,12],[21,12,22,12]]}
[{"$f":"'Vstupné údaje'!$B$4","v":"O putovný pohár starostu obce Lednica (10. kolo SMHL 2024)"},null,null,null,null,null,null,null,null,null,null,null,"Návod na plnohodnotnú prácu s výsledkami"]
[{"$f":"CONCATENATE(\"Výsledky \",'Vstupné údaje'!$B$7,\". kola SMHL \",TEXT('Vstupné údaje'!$B$5,\"yyyy\"),\" v kategórii MUŽI, ktoré sa konalo \",TEXT('Vstupné údaje'!$B$5,\"dd.mm.yyyy\"),\" o \",TEXT('Vstupné údaje'!$B$6,\"hh:mm\"))","v":"Výsledky 10. kola SMHL 2024 v kategórii MUŽI, ktoré sa konalo 21.07.2024 o 14:00"}]
[]
["Por.","Družstvo","Okres","ĽP","PP","Výs. čas","Body","Prestup",null,null,null,null,"Pri zadávaní výsledkov sa vypĺňajú nasledujúce stĺpce (zvyšné sa vypočítajú automaticky):"]
[{"$f":"IF(Výsledky_MUŽI[[#This Row],[Výs. čas]]=\"čas\",\"---\",IF(Výsledky_MUŽI[[#This Row],[Výs. čas]]=99.99,\"---\",IF(Výsledky_MUŽI[[#This Row],[Výs. čas]]=\"Diskv.\",\"---\",IF(Výsledky_MUŽI[[#This Row],[Výs. čas]]=\"Neúčasť\",\"---\",_xlfn.RANK.EQ(Výsledky_MUŽI[[#This Row],[Výs. čas]],Výsledky_MUŽI[Výs. čas],1)))))","v":1},"Zbora","PU",13.98,13.58,{"$f":"IF(AND(ISBLANK(Výsledky_MUŽI[[#This Row],[PP]])),\"čas\",IF(Výsledky_MUŽI[[#This Row],[ĽP]]=\"D\",\"Diskv.\",IF(Výsledky_MUŽI[[#This Row],[PP]]=\"D\",\"Diskv.\",IF(Výsledky_MUŽI[[#This Row],[ĽP]]=\"n\",\"Neúčasť\",IF(Výsledky_MUŽI[[#This Row],[PP]]=\"n\",\"Neúčasť\",MAX(SUBSTITUTE(Výsledky_MUŽI[[#This Row],[ĽP]],\",\",\".\"),SUBSTITUTE(Výsledky_MUŽI[[#This Row],[PP]],\",\",\".\")))))))","v":13.98},{"$f":"IF(Výsledky_MUŽI[[#This Row],[Por.]]=1,20,IF(Výsledky_MUŽI[[#This Row],[Por.]]=2,17,IF(Výsledky_MUŽI[[#This Row],[Por.]]=3,15,IF(Výsledky_MUŽI[[#This Row],[Por.]]=4,13,IF(Výsledky_MUŽI[[#This Row],[Por.]]=5,11,IF(Výsledky_MUŽI[[#This Row],[Por.]]=6,9,IF(Výsledky_MUŽI[[#This Row],[Por.]]=7,8,IF(Výsledky_MUŽI[[#This Row],[Por.]]=8,7,IF(Výsledky_MUŽI[[#This Row],[Por.]]=9,6,IF(Výsledky_MUŽI[[#This Row],[Por.]]=10,5,IF(Výsledky_MUŽI[[#This Row],[Por.]]=11,4,IF(Výsledky_MUŽI[[#This Row],[Por.]]=12,3,IF(Výsledky_MUŽI[[#This Row],[Výs. čas]]=99.99,1,IF(Výsledky_MUŽI[[#This Row],[Výs. čas]]=\"Diskv.\",1,IF(Výsledky_MUŽI[[#This Row],[Výs. čas]]=\"Neúčasť\",0,2)))))))))))))))","v":20},null,null,null,null,null,"--- družstvo"]
[{"$f":"IF(Výsledky_MUŽI[[#This Row],[Výs. čas]]=\"čas\",\"---\",IF(Výsledky_MUŽI[[#This Row],[Výs. čas]]=99.99,\"---\",IF(Výsledky_MUŽI[[#This Row],[Výs. čas]]=\"Diskv.\",\"---\",IF(Výsledky_MUŽI[[#This Row],[Výs. čas]]=\"Neúčasť\",\"---\",_xlfn.RANK.EQ(Výsledky_MUŽI[[#This Row],[Výs. čas]],Výsledky_MUŽI[Výs. čas],1)))))","v":2},"Hoštiná","PU",14.06,13.75,{"$f":"IF(AND(ISBLANK(Výsledky_MUŽI[[#This Row],[PP]])),\"čas\",IF(Výsledky_MUŽI[[#This Row],[ĽP]]=\"D\",\"Diskv.\",IF(Výsledky_MUŽI[[#This Row],[PP]]=\"D\",\"Diskv.\",IF(Výsledky_MUŽI[[#This Row],[ĽP]]=\"n\",\"Neúčasť\",IF(Výsledky_MUŽI[[#This Row],[PP]]=\"n\",\"Neúčasť\",MAX(SUBSTITUTE(Výsledky_MUŽI[[#This Row],[ĽP]],\",\",\".\"),SUBSTITUTE(Výsledky_MUŽI[[#This Row],[PP]],\",\",\".\")))))))","v":14.06},{"$f":"IF(Výsledky_MUŽI[[#This Row],[Por.]]=1,20,IF(Výsledky_MUŽI[[#This Row],[Por.]]=2,17,IF(Výsledky_MUŽI[[#This Row],[Por.]]=3,15,IF(Výsledky_MUŽI[[#This Row],[Por.]]=4,13,IF(Výsledky_MUŽI[[#This Row],[Por.]]=5,11,IF(Výsledky_MUŽI[[#This Row],[Por.]]=6,9,IF(Výsledky_MUŽI[[#This Row],[Por.]]=7,8,IF(Výsledky_MUŽI[[#This Row],[Por.]]=8,7,IF(Výsledky_MUŽI[[#This Row],[Por.]]=9,6,IF(Výsledky_MUŽI[[#This Row],[Por.]]=10,5,IF(Výsledky_MUŽI[[#This Row],[Por.]]=11,4,IF(Výsledky_MUŽI[[#This Row],[Por.]]=12,3,IF(Výsledky_MUŽI[[#This Row],[Výs. čas]]=99.99,1,IF(Výsledky_MUŽI[[#This Row],[Výs. čas]]=\"Diskv.\",1,IF(Výsledky_MUŽI[[#This Row],[Výs. čas]]=\"Neúčasť\",0,2)))))))))))))))","v":17},null,null,null,null,null,"--- okres"]
[{"$f":"IF(Výsledky_MUŽI[[#This Row],[Výs. čas]]=\"čas\",\"---\",IF(Výsledky_MUŽI[[#This Row],[Výs. čas]]=99.99,\"---\",IF(Výsledky_MUŽI[[#This Row],[Výs. čas]]=\"Diskv.\",\"---\",IF(Výsledky_MUŽI[[#This Row],[Výs. čas]]=\"Neúčasť\",\"---\",_xlfn.RANK.EQ(Výsledky_MUŽI[[#This Row],[Výs. čas]],Výsledky_MUŽI[Výs. čas],1)))))","v":3},"Podlužany","BN",14.31,14.21,{"$f":"IF(AND(ISBLANK(Výsledky_MUŽI[[#This Row],[PP]])),\"čas\",IF(Výsledky_MUŽI[[#This Row],[ĽP]]=\"D\",\"Diskv.\",IF(Výsledky_MUŽI[[#This Row],[PP]]=\"D\",\"Diskv.\",IF(Výsledky_MUŽI[[#This Row],[ĽP]]=\"n\",\"Neúčasť\",IF(Výsledky_MUŽI[[#This Row],[PP]]=\"n\",\"Neúčasť\",MAX(SUBSTITUTE(Výsledky_MUŽI[[#This Row],[ĽP]],\",\",\".\"),SUBSTITUTE(Výsledky_MUŽI[[#This Row],[PP]],\",\",\".\")))))))","v":14.31},{"$f":"IF(Výsledky_MUŽI[[#This Row],[Por.]]=1,20,IF(Výsledky_MUŽI[[#This Row],[Por.]]=2,17,IF(Výsledky_MUŽI[[#This Row],[Por.]]=3,15,IF(Výsledky_MUŽI[[#This Row],[Por.]]=4,13,IF(Výsledky_MUŽI[[#This Row],[Por.]]=5,11,IF(Výsledky_MUŽI[[#This Row],[Por.]]=6,9,IF(Výsledky_MUŽI[[#This Row],[Por.]]=7,8,IF(Výsledky_MUŽI[[#This Row],[Por.]]=8,7,IF(Výsledky_MUŽI[[#This Row],[Por.]]=9,6,IF(Výsledky_MUŽI[[#This Row],[Por.]]=10,5,IF(Výsledky_MUŽI[[#This Row],[Por.]]=11,4,IF(Výsledky_MUŽI[[#This Row],[Por.]]=12,3,IF(Výsledky_MUŽI[[#This Row],[Výs. čas]]=99.99,1,IF(Výsledky_MUŽI[[#This Row],[Výs. čas]]=\"Diskv.\",1,IF(Výsledky_MUŽI[[#This Row],[Výs. čas]]=\"Neúčasť\",0,2)))))))))))))))","v":15},null,null,null,null,null,"--- ľavý prúd (ĽP)"]
[{"$f":"IF(Výsledky_MUŽI[[#This Row],[Výs. čas]]=\"čas\",\"---\",IF(Výsledky_MUŽI[[#This Row],[Výs. čas]]=99.99,\"---\",IF(Výsledky_MUŽI[[#This Row],[Výs. čas]]=\"Diskv.\",\"---\",IF(Výsledky_MUŽI[[#This Row],[Výs. čas]]=\"Neúčasť\",\"---\",_xlfn.RANK.EQ(Výsledky_MUŽI[[#This Row],[Výs. čas]],Výsledky_MUŽI[Výs. čas],1)))))","v":4},"Turčiansky Háj","TR",14.37,14.23,{"$f":"IF(AND(ISBLANK(Výsledky_MUŽI[[#This Row],[PP]])),\"čas\",IF(Výsledky_MUŽI[[#This Row],[ĽP]]=\"D\",\"Diskv.\",IF(Výsledky_MUŽI[[#This Row],[PP]]=\"D\",\"Diskv.\",IF(Výsledky_MUŽI[[#This Row],[ĽP]]=\"n\",\"Neúčasť\",IF(Výsledky_MUŽI[[#This Row],[PP]]=\"n\",\"Neúčasť\",MAX(SUBSTITUTE(Výsledky_MUŽI[[#This Row],[ĽP]],\",\",\".\"),SUBSTITUTE(Výsledky_MUŽI[[#This Row],[PP]],\",\",\".\")))))))","v":14.37},{"$f":"IF(Výsledky_MUŽI[[#This Row],[Por.]]=1,20,IF(Výsledky_MUŽI[[#This Row],[Por.]]=2,17,IF(Výsledky_MUŽI[[#This Row],[Por.]]=3,15,IF(Výsledky_MUŽI[[#This Row],[Por.]]=4,13,IF(Výsledky_MUŽI[[#This Row],[Por.]]=5,11,IF(Výsledky_MUŽI[[#This Row],[Por.]]=6,9,IF(Výsledky_MUŽI[[#This Row],[Por.]]=7,8,IF(Výsledky_MUŽI[[#This Row],[Por.]]=8,7,IF(Výsledky_MUŽI[[#This Row],[Por.]]=9,6,IF(Výsledky_MUŽI[[#This Row],[Por.]]=10,5,IF(Výsledky_MUŽI[[#This Row],[Por.]]=11,4,IF(Výsledky_MUŽI[[#This Row],[Por.]]=12,3,IF(Výsledky_MUŽI[[#This Row],[Výs. čas]]=99.99,1,IF(Výsledky_MUŽI[[#This Row],[Výs. čas]]=\"Diskv.\",1,IF(Výsledky_MUŽI[[#This Row],[Výs. čas]]=\"Neúčasť\",0,2)))))))))))))))","v":13},null,null,null,null,null,"--- pravý prúd (PP)"]
[{"$f":"IF(Výsledky_MUŽI[[#This Row],[Výs. čas]]=\"čas\",\"---\",IF(Výsledky_MUŽI[[#This Row],[Výs. čas]]=99.99,\"---\",IF(Výsledky_MUŽI[[#This Row],[Výs. čas]]=\"Diskv.\",\"---\",IF(Výsledky_MUŽI[[#This Row],[Výs. čas]]=\"Neúčasť\",\"---\",_xlfn.RANK.EQ(Výsledky_MUŽI[[#This Row],[Výs. čas]],Výsledky_MUŽI[Výs. čas],1)))))","v":5},"Poruba","PD",14.56,14.86,{"$f":"IF(AND(ISBLANK(Výsledky_MUŽI[[#This Row],[PP]])),\"čas\",IF(Výsledky_MUŽI[[#This Row],[ĽP]]=\"D\",\"Diskv.\",IF(Výsledky_MUŽI[[#This Row],[PP]]=\"D\",\"Diskv.\",IF(Výsledky_MUŽI[[#This Row],[ĽP]]=\"n\",\"Neúčasť\",IF(Výsledky_MUŽI[[#This Row],[PP]]=\"n\",\"Neúčasť\",MAX(SUBSTITUTE(Výsledky_MUŽI[[#This Row],[ĽP]],\",\",\".\"),SUBSTITUTE(Výsledky_MUŽI[[#This Row],[PP]],\",\",\".\")))))))","v":14.86},{"$f":"IF(Výsledky_MUŽI[[#This Row],[Por.]]=1,20,IF(Výsledky_MUŽI[[#This Row],[Por.]]=2,17,IF(Výsledky_MUŽI[[#This Row],[Por.]]=3,15,IF(Výsledky_MUŽI[[#This Row],[Por.]]=4,13,IF(Výsledky_MUŽI[[#This Row],[Por.]]=5,11,IF(Výsledky_MUŽI[[#This Row],[Por.]]=6,9,IF(Výsledky_MUŽI[[#This Row],[Por.]]=7,8,IF(Výsledky_MUŽI[[#This Row],[Por.]]=8,7,IF(Výsledky_MUŽI[[#This Row],[Por.]]=9,6,IF(Výsledky_MUŽI[[#This Row],[Por.]]=10,5,IF(Výsledky_MUŽI[[#This Row],[Por.]]=11,4,IF(Výsledky_MUŽI[[#This Row],[Por.]]=12,3,IF(Výsledky_MUŽI[[#This Row],[Výs. čas]]=99.99,1,IF(Výsledky_MUŽI[[#This Row],[Výs. čas]]=\"Diskv.\",1,IF(Výsledky_MUŽI[[#This Row],[Výs. čas]]=\"Neúčasť\",0,2)))))))))))))))","v":11},null,null,null,null,null,"--- prestup"]
[{"$f":"IF(Výsledky_MUŽI[[#This Row],[Výs. čas]]=\"čas\",\"---\",IF(Výsledky_MUŽI[[#This Row],[Výs. čas]]=99.99,\"---\",IF(Výsledky_MUŽI[[#This Row],[Výs. čas]]=\"Diskv.\",\"---\",IF(Výsledky_MUŽI[[#This Row],[Výs. čas]]=\"Neúčasť\",\"---\",_xlfn.RANK.EQ(Výsledky_MUŽI[[#This Row],[Výs. čas]],Výsledky_MUŽI[Výs. čas],1)))))","v":6},"Svinná","TN",14.89,14.34,{"$f":"IF(AND(ISBLANK(Výsledky_MUŽI[[#This Row],[PP]])),\"čas\",IF(Výsledky_MUŽI[[#This Row],[ĽP]]=\"D\",\"Diskv.\",IF(Výsledky_MUŽI[[#This Row],[PP]]=\"D\",\"Diskv.\",IF(Výsledky_MUŽI[[#This Row],[ĽP]]=\"n\",\"Neúčasť\",IF(Výsledky_MUŽI[[#This Row],[PP]]=\"n\",\"Neúčasť\",MAX(SUBSTITUTE(Výsledky_MUŽI[[#This Row],[ĽP]],\",\",\".\"),SUBSTITUTE(Výsledky_MUŽI[[#This Row],[PP]],\",\",\".\")))))))","v":14.89},{"$f":"IF(Výsledky_MUŽI[[#This Row],[Por.]]=1,20,IF(Výsledky_MUŽI[[#This Row],[Por.]]=2,17,IF(Výsledky_MUŽI[[#This Row],[Por.]]=3,15,IF(Výsledky_MUŽI[[#This Row],[Por.]]=4,13,IF(Výsledky_MUŽI[[#This Row],[Por.]]=5,11,IF(Výsledky_MUŽI[[#This Row],[Por.]]=6,9,IF(Výsledky_MUŽI[[#This Row],[Por.]]=7,8,IF(Výsledky_MUŽI[[#This Row],[Por.]]=8,7,IF(Výsledky_MUŽI[[#This Row],[Por.]]=9,6,IF(Výsledky_MUŽI[[#This Row],[Por.]]=10,5,IF(Výsledky_MUŽI[[#This Row],[Por.]]=11,4,IF(Výsledky_MUŽI[[#This Row],[Por.]]=12,3,IF(Výsledky_MUŽI[[#This Row],[Výs. čas]]=99.99,1,IF(Výsledky_MUŽI[[#This Row],[Výs. čas]]=\"Diskv.\",1,IF(Výsledky_MUŽI[[#This Row],[Výs. čas]]=\"Neúčasť\",0,2)))))))))))))))","v":9}]
[{"$f":"IF(Výsledky_MUŽI[[#This Row],[Výs. čas]]=\"čas\",\"---\",IF(Výsledky_MUŽI[[#This Row],[Výs. čas]]=99.99,\"---\",IF(Výsledky_MUŽI[[#This Row],[Výs. čas]]=\"Diskv.\",\"---\",IF(Výsledky_MUŽI[[#This Row],[Výs. čas]]=\"Neúčasť\",\"---\",_xlfn.RANK.EQ(Výsledky_MUŽI[[#This Row],[Výs. čas]],Výsledky_MUŽI[Výs. čas],1)))))","v":7},"Dohňany","PU",14.76,15.03,{"$f":"IF(AND(ISBLANK(Výsledky_MUŽI[[#This Row],[PP]])),\"čas\",IF(Výsledky_MUŽI[[#This Row],[ĽP]]=\"D\",\"Diskv.\",IF(Výsledky_MUŽI[[#This Row],[PP]]=\"D\",\"Diskv.\",IF(Výsledky_MUŽI[[#This Row],[ĽP]]=\"n\",\"Neúčasť\",IF(Výsledky_MUŽI[[#This Row],[PP]]=\"n\",\"Neúčasť\",MAX(SUBSTITUTE(Výsledky_MUŽI[[#This Row],[ĽP]],\",\",\".\"),SUBSTITUTE(Výsledky_MUŽI[[#This Row],[PP]],\",\",\".\")))))))","v":15.03},{"$f":"IF(Výsledky_MUŽI[[#This Row],[Por.]]=1,20,IF(Výsledky_MUŽI[[#This Row],[Por.]]=2,17,IF(Výsledky_MUŽI[[#This Row],[Por.]]=3,15,IF(Výsledky_MUŽI[[#This Row],[Por.]]=4,13,IF(Výsledky_MUŽI[[#This Row],[Por.]]=5,11,IF(Výsledky_MUŽI[[#This Row],[Por.]]=6,9,IF(Výsledky_MUŽI[[#This Row],[Por.]]=7,8,IF(Výsledky_MUŽI[[#This Row],[Por.]]=8,7,IF(Výsledky_MUŽI[[#This Row],[Por.]]=9,6,IF(Výsledky_MUŽI[[#This Row],[Por.]]=10,5,IF(Výsledky_MUŽI[[#This Row],[Por.]]=11,4,IF(Výsledky_MUŽI[[#This Row],[Por.]]=12,3,IF(Výsledky_MUŽI[[#This Row],[Výs. čas]]=99.99,1,IF(Výsledky_MUŽI[[#This Row],[Výs. čas]]=\"Diskv.\",1,IF(Výsledky_MUŽI[[#This Row],[Výs. čas]]=\"Neúčasť\",0,2)))))))))))))))","v":8},null,null,null,null,null,"Dovolený formát zadávaných údajov:"]
[{"$f":"IF(Výsledky_MUŽI[[#This Row],[Výs. čas]]=\"čas\",\"---\",IF(Výsledky_MUŽI[[#This Row],[Výs. čas]]=99.99,\"---\",IF(Výsledky_MUŽI[[#This Row],[Výs. čas]]=\"Diskv.\",\"---\",IF(Výsledky_MUŽI[[#This Row],[Výs. čas]]=\"Neúčasť\",\"---\",_xlfn.RANK.EQ(Výsledky_MUŽI[[#This Row],[Výs. čas]],Výsledky_MUŽI[Výs. čas],1)))))","v":8},"Kanianka","PD",15.36,15.5,{"$f":"IF(AND(ISBLANK(Výsledky_MUŽI[[#This Row],[PP]])),\"čas\",IF(Výsledky_MUŽI[[#This Row],[ĽP]]=\"D\",\"Diskv.\",IF(Výsledky_MUŽI[[#This Row],[PP]]=\"D\",\"Diskv.\",IF(Výsledky_MUŽI[[#This Row],[ĽP]]=\"n\",\"Neúčasť\",IF(Výsledky_MUŽI[[#This Row],[PP]]=\"n\",\"Neúčasť\",MAX(SUBSTITUTE(Výsledky_MUŽI[[#This Row],[ĽP]],\",\",\".\"),SUBSTITUTE(Výsledky_MUŽI[[#This Row],[PP]],\",\",\".\")))))))","v":15.5},{"$f":"IF(Výsledky_MUŽI[[#This Row],[Por.]]=1,20,IF(Výsledky_MUŽI[[#This Row],[Por.]]=2,17,IF(Výsledky_MUŽI[[#This Row],[Por.]]=3,15,IF(Výsledky_MUŽI[[#This Row],[Por.]]=4,13,IF(Výsledky_MUŽI[[#This Row],[Por.]]=5,11,IF(Výsledky_MUŽI[[#This Row],[Por.]]=6,9,IF(Výsledky_MUŽI[[#This Row],[Por.]]=7,8,IF(Výsledky_MUŽI[[#This Row],[Por.]]=8,7,IF(Výsledky_MUŽI[[#This Row],[Por.]]=9,6,IF(Výsledky_MUŽI[[#This Row],[Por.]]=10,5,IF(Výsledky_MUŽI[[#This Row],[Por.]]=11,4,IF(Výsledky_MUŽI[[#This Row],[Por.]]=12,3,IF(Výsledky_MUŽI[[#This Row],[Výs. čas]]=99.99,1,IF(Výsledky_MUŽI[[#This Row],[Výs. čas]]=\"Diskv.\",1,IF(Výsledky_MUŽI[[#This Row],[Výs. čas]]=\"Neúčasť\",0,2)))))))))))))))","v":7},null,null,null,null,null,"Družstvo, okres"]
[{"$f":"IF(Výsledky_MUŽI[[#This Row],[Výs. čas]]=\"čas\",\"---\",IF(Výsledky_MUŽI[[#This Row],[Výs. čas]]=99.99,\"---\",IF(Výsledky_MUŽI[[#This Row],[Výs. čas]]=\"Diskv.\",\"---\",IF(Výsledky_MUŽI[[#This Row],[Výs. čas]]=\"Neúčasť\",\"---\",_xlfn.RANK.EQ(Výsledky_MUŽI[[#This Row],[Výs. čas]],Výsledky_MUŽI[Výs. čas],1)))))","v":9},"Ďurďové B","PB",15.66,15.82,{"$f":"IF(AND(ISBLANK(Výsledky_MUŽI[[#This Row],[PP]])),\"čas\",IF(Výsledky_MUŽI[[#This Row],[ĽP]]=\"D\",\"Diskv.\",IF(Výsledky_MUŽI[[#This Row],[PP]]=\"D\",\"Diskv.\",IF(Výsledky_MUŽI[[#This Row],[ĽP]]=\"n\",\"Neúčasť\",IF(Výsledky_MUŽI[[#This Row],[PP]]=\"n\",\"Neúčasť\",MAX(SUBSTITUTE(Výsledky_MUŽI[[#This Row],[ĽP]],\",\",\".\"),SUBSTITUTE(Výsledky_MUŽI[[#This Row],[PP]],\",\",\".\")))))))","v":15.82},{"$f":"IF(Výsledky_MUŽI[[#This Row],[Por.]]=1,20,IF(Výsledky_MUŽI[[#This Row],[Por.]]=2,17,IF(Výsledky_MUŽI[[#This Row],[Por.]]=3,15,IF(Výsledky_MUŽI[[#This Row],[Por.]]=4,13,IF(Výsledky_MUŽI[[#This Row],[Por.]]=5,11,IF(Výsledky_MUŽI[[#This Row],[Por.]]=6,9,IF(Výsledky_MUŽI[[#This Row],[Por.]]=7,8,IF(Výsledky_MUŽI[[#This Row],[Por.]]=8,7,IF(Výsledky_MUŽI[[#This Row],[Por.]]=9,6,IF(Výsledky_MUŽI[[#This Row],[Por.]]=10,5,IF(Výsledky_MUŽI[[#This Row],[Por.]]=11,4,IF(Výsledky_MUŽI[[#This Row],[Por.]]=12,3,IF(Výsledky_MUŽI[[#This Row],[Výs. čas]]=99.99,1,IF(Výsledky_MUŽI[[#This Row],[Výs. čas]]=\"Diskv.\",1,IF(Výsledky_MUŽI[[#This Row],[Výs. čas]]=\"Neúčasť\",0,2)))))))))))))))","v":6},null,null,null,null,null,"--- ľubovoľný text"]
[{"$f":"IF(Výsledky_MUŽI[[#This Row],[Výs. čas]]=\"čas\",\"---\",IF(Výsledky_MUŽI[[#This Row],[Výs. čas]]=99.99,\"---\",IF(Výsledky_MUŽI[[#This Row],[Výs. čas]]=\"Diskv.\",\"---\",IF(Výsledky_MUŽI[[#This Row],[Výs. čas]]=\"Neúčasť\",\"---\",_xlfn.RANK.EQ(Výsledky_MUŽI[[#This Row],[Výs. čas]],Výsledky_MUŽI[Výs. čas],1)))))","v":10},"Lednické Rovne","PU",15.85,15.75,{"$f":"IF(AND(ISBLANK(Výsledky_MUŽI[[#This Row],[PP]])),\"čas\",IF(Výsledky_MUŽI[[#This Row],[ĽP]]=\"D\",\"Diskv.\",IF(Výsledky_MUŽI[[#This Row],[PP]]=\"D\",\"Diskv.\",IF(Výsledky_MUŽI[[#This Row],[ĽP]]=\"n\",\"Neúčasť\",IF(Výsledky_MUŽI[[#This Row],[PP]]=\"n\",\"Neúčasť\",MAX(SUBSTITUTE(Výsledky_MUŽI[[#This Row],[ĽP]],\",\",\".\"),SUBSTITUTE(Výsledky_MUŽI[[#This Row],[PP]],\",\",\".\")))))))","v":15.85},{"$f":"IF(Výsledky_MUŽI[[#This Row],[Por.]]=1,20,IF(Výsledky_MUŽI[[#This Row],[Por.]]=2,17,IF(Výsledky_MUŽI[[#This Row],[Por.]]=3,15,IF(Výsledky_MUŽI[[#This Row],[Por.]]=4,13,IF(Výsledky_MUŽI[[#This Row],[Por.]]=5,11,IF(Výsledky_MUŽI[[#This Row],[Por.]]=6,9,IF(Výsledky_MUŽI[[#This Row],[Por.]]=7,8,IF(Výsledky_MUŽI[[#This Row],[Por.]]=8,7,IF(Výsledky_MUŽI[[#This Row],[Por.]]=9,6,IF(Výsledky_MUŽI[[#This Row],[Por.]]=10,5,IF(Výsledky_MUŽI[[#This Row],[Por.]]=11,4,IF(Výsledky_MUŽI[[#This Row],[Por.]]=12,3,IF(Výsledky_MUŽI[[#This Row],[Výs. čas]]=99.99,1,IF(Výsledky_MUŽI[[#This Row],[Výs. čas]]=\"Diskv.\",1,IF(Výsledky_MUŽI[[#This Row],[Výs. čas]]=\"Neúčasť\",0,2)))))))))))))))","v":5},null,null,null,null,null,"Ľavý/pravý prúd"]
[{"$f":"IF(Výsledky_MUŽI[[#This Row],[Výs. čas]]=\"čas\",\"---\",IF(Výsledky_MUŽI[[#This Row],[Výs. čas]]=99.99,\"---\",IF(Výsledky_MUŽI[[#This Row],[Výs. čas]]=\"Diskv.\",\"---\",IF(Výsledky_MUŽI[[#This Row],[Výs. čas]]=\"Neúčasť\",\"---\",_xlfn.RANK.EQ(Výsledky_MUŽI[[#This Row],[Výs. čas]],Výsledky_MUŽI[Výs. čas],1)))))","v":11},"Milochov","PU",15.34,16.010000000000002,{"$f":"IF(AND(ISBLANK(Výsledky_MUŽI[[#This Row],[PP]])),\"čas\",IF(Výsledky_MUŽI[[#This Row],[ĽP]]=\"D\",\"Diskv.\",IF(Výsledky_MUŽI[[#This Row],[PP]]=\"D\",\"Diskv.\",IF(Výsledky_MUŽI[[#This Row],[ĽP]]=\"n\",\"Neúčasť\",IF(Výsledky_MUŽI[[#This Row],[PP]]=\"n\",\"Neúčasť\",MAX(SUBSTITUTE(Výsledky_MUŽI[[#This Row],[ĽP]],\",\",\".\"),SUBSTITUTE(Výsledky_MUŽI[[#This Row],[PP]],\",\",\".\")))))))","v":16.010000000000002},{"$f":"IF(Výsledky_MUŽI[[#This Row],[Por.]]=1,20,IF(Výsledky_MUŽI[[#This Row],[Por.]]=2,17,IF(Výsledky_MUŽI[[#This Row],[Por.]]=3,15,IF(Výsledky_MUŽI[[#This Row],[Por.]]=4,13,IF(Výsledky_MUŽI[[#This Row],[Por.]]=5,11,IF(Výsledky_MUŽI[[#This Row],[Por.]]=6,9,IF(Výsledky_MUŽI[[#This Row],[Por.]]=7,8,IF(Výsledky_MUŽI[[#This Row],[Por.]]=8,7,IF(Výsledky_MUŽI[[#This Row],[Por.]]=9,6,IF(Výsledky_MUŽI[[#This Row],[Por.]]=10,5,IF(Výsledky_MUŽI[[#This Row],[Por.]]=11,4,IF(Výsledky_MUŽI[[#This Row],[Por.]]=12,3,IF(Výsledky_MUŽI[[#This Row],[Výs. čas]]=99.99,1,IF(Výsledky_MUŽI[[#This Row],[Výs. čas]]=\"Diskv.\",1,IF(Výsledky_MUŽI[[#This Row],[Výs. čas]]=\"Neúčasť\",0,2)))))))))))))))","v":4},null,null,null,null,null,"14.00 --- dokončený pokus"]
[{"$f":"IF(Výsledky_MUŽI[[#This Row],[Výs. čas]]=\"čas\",\"---\",IF(Výsledky_MUŽI[[#This Row],[Výs. čas]]=99.99,\"---\",IF(Výsledky_MUŽI[[#This Row],[Výs. čas]]=\"Diskv.\",\"---\",IF(Výsledky_MUŽI[[#This Row],[Výs. čas]]=\"Neúčasť\",\"---\",_xlfn.RANK.EQ(Výsledky_MUŽI[[#This Row],[Výs. čas]],Výsledky_MUŽI[Výs. čas],1)))))","v":12},"Rybany","BN",16.21,14.74,{"$f":"IF(AND(ISBLANK(Výsledky_MUŽI[[#This Row],[PP]])),\"čas\",IF(Výsledky_MUŽI[[#This Row],[ĽP]]=\"D\",\"Diskv.\",IF(Výsledky_MUŽI[[#This Row],[PP]]=\"D\",\"Diskv.\",IF(Výsledky_MUŽI[[#This Row],[ĽP]]=\"n\",\"Neúčasť\",IF(Výsledky_MUŽI[[#This Row],[PP]]=\"n\",\"Neúčasť\",MAX(SUBSTITUTE(Výsledky_MUŽI[[#This Row],[ĽP]],\",\",\".\"),SUBSTITUTE(Výsledky_MUŽI[[#This Row],[PP]],\",\",\".\")))))))","v":16.21},{"$f":"IF(Výsledky_MUŽI[[#This Row],[Por.]]=1,20,IF(Výsledky_MUŽI[[#This Row],[Por.]]=2,17,IF(Výsledky_MUŽI[[#This Row],[Por.]]=3,15,IF(Výsledky_MUŽI[[#This Row],[Por.]]=4,13,IF(Výsledky_MUŽI[[#This Row],[Por.]]=5,11,IF(Výsledky_MUŽI[[#This Row],[Por.]]=6,9,IF(Výsledky_MUŽI[[#This Row],[Por.]]=7,8,IF(Výsledky_MUŽI[[#This Row],[Por.]]=8,7,IF(Výsledky_MUŽI[[#This Row],[Por.]]=9,6,IF(Výsledky_MUŽI[[#This Row],[Por.]]=10,5,IF(Výsledky_MUŽI[[#This Row],[Por.]]=11,4,IF(Výsledky_MUŽI[[#This Row],[Por.]]=12,3,IF(Výsledky_MUŽI[[#This Row],[Výs. čas]]=99.99,1,IF(Výsledky_MUŽI[[#This Row],[Výs. čas]]=\"Diskv.\",1,IF(Výsledky_MUŽI[[#This Row],[Výs. čas]]=\"Neúčasť\",0,2)))))))))))))))","v":3},null,null,null,null,null,"99.99 --- nedokončený pokus"]
[{"$f":"IF(Výsledky_MUŽI[[#This Row],[Výs. čas]]=\"čas\",\"---\",IF(Výsledky_MUŽI[[#This Row],[Výs. čas]]=99.99,\"---\",IF(Výsledky_MUŽI[[#This Row],[Výs. čas]]=\"Diskv.\",\"---\",IF(Výsledky_MUŽI[[#This Row],[Výs. čas]]=\"Neúčasť\",\"---\",_xlfn.RANK.EQ(Výsledky_MUŽI[[#This Row],[Výs. čas]],Výsledky_MUŽI[Výs. čas],1)))))","v":13},"Krásno","PE",14.88,16.440000000000001,{"$f":"IF(AND(ISBLANK(Výsledky_MUŽI[[#This Row],[PP]])),\"čas\",IF(Výsledky_MUŽI[[#This Row],[ĽP]]=\"D\",\"Diskv.\",IF(Výsledky_MUŽI[[#This Row],[PP]]=\"D\",\"Diskv.\",IF(Výsledky_MUŽI[[#This Row],[ĽP]]=\"n\",\"Neúčasť\",IF(Výsledky_MUŽI[[#This Row],[PP]]=\"n\",\"Neúčasť\",MAX(SUBSTITUTE(Výsledky_MUŽI[[#This Row],[ĽP]],\",\",\".\"),SUBSTITUTE(Výsledky_MUŽI[[#This Row],[PP]],\",\",\".\")))))))","v":16.440000000000001},{"$f":"IF(Výsledky_MUŽI[[#This Row],[Por.]]=1,20,IF(Výsledky_MUŽI[[#This Row],[Por.]]=2,17,IF(Výsledky_MUŽI[[#This Row],[Por.]]=3,15,IF(Výsledky_MUŽI[[#This Row],[Por.]]=4,13,IF(Výsledky_MUŽI[[#This Row],[Por.]]=5,11,IF(Výsledky_MUŽI[[#This Row],[Por.]]=6,9,IF(Výsledky_MUŽI[[#This Row],[Por.]]=7,8,IF(Výsledky_MUŽI[[#This Row],[Por.]]=8,7,IF(Výsledky_MUŽI[[#This Row],[Por.]]=9,6,IF(Výsledky_MUŽI[[#This Row],[Por.]]=10,5,IF(Výsledky_MUŽI[[#This Row],[Por.]]=11,4,IF(Výsledky_MUŽI[[#This Row],[Por.]]=12,3,IF(Výsledky_MUŽI[[#This Row],[Výs. čas]]=99.99,1,IF(Výsledky_MUŽI[[#This Row],[Výs. čas]]=\"Diskv.\",1,IF(Výsledky_MUŽI[[#This Row],[Výs. čas]]=\"Neúčasť\",0,2)))))))))))))))","v":2},null,null,null,null,null,"D        --- diskvalifikácia družstva"]
[{"$f":"IF(Výsledky_MUŽI[[#This Row],[Výs. čas]]=\"čas\",\"---\",IF(Výsledky_MUŽI[[#This Row],[Výs. čas]]=99.99,\"---\",IF(Výsledky_MUŽI[[#This Row],[Výs. čas]]=\"Diskv.\",\"---\",IF(Výsledky_MUŽI[[#This Row],[Výs. čas]]=\"Neúčasť\",\"---\",_xlfn.RANK.EQ(Výsledky_MUŽI[[#This Row],[Výs. čas]],Výsledky_MUŽI[Výs. čas],1)))))","v":14},"Lednica","PU",16.059999999999999,16.53,{"$f":"IF(AND(ISBLANK(Výsledky_MUŽI[[#This Row],[PP]])),\"čas\",IF(Výsledky_MUŽI[[#This Row],[ĽP]]=\"D\",\"Diskv.\",IF(Výsledky_MUŽI[[#This Row],[PP]]=\"D\",\"Diskv.\",IF(Výsledky_MUŽI[[#This Row],[ĽP]]=\"n\",\"Neúčasť\",IF(Výsledky_MUŽI[[#This Row],[PP]]=\"n\",\"Neúčasť\",MAX(SUBSTITUTE(Výsledky_MUŽI[[#This Row],[ĽP]],\",\",\".\"),SUBSTITUTE(Výsledky_MUŽI[[#This Row],[PP]],\",\",\".\")))))))","v":16.53},{"$f":"IF(Výsledky_MUŽI[[#This Row],[Por.]]=1,20,IF(Výsledky_MUŽI[[#This Row],[Por.]]=2,17,IF(Výsledky_MUŽI[[#This Row],[Por.]]=3,15,IF(Výsledky_MUŽI[[#This Row],[Por.]]=4,13,IF(Výsledky_MUŽI[[#This Row],[Por.]]=5,11,IF(Výsledky_MUŽI[[#This Row],[Por.]]=6,9,IF(Výsledky_MUŽI[[#This Row],[Por.]]=7,8,IF(Výsledky_MUŽI[[#This Row],[Por.]]=8,7,IF(Výsledky_MUŽI[[#This Row],[Por.]]=9,6,IF(Výsledky_MUŽI[[#This Row],[Por.]]=10,5,IF(Výsledky_MUŽI[[#This Row],[Por.]]=11,4,IF(Výsledky_MUŽI[[#This Row],[Por.]]=12,3,IF(Výsledky_MUŽI[[#This Row],[Výs. čas]]=99.99,1,IF(Výsledky_MUŽI[[#This Row],[Výs. čas]]=\"Diskv.\",1,IF(Výsledky_MUŽI[[#This Row],[Výs. čas]]=\"Neúčasť\",0,2)))))))))))))))","v":2},null,null,null,null,null,"N        --- neúčasť družstva"]
[{"$f":"IF(Výsledky_MUŽI[[#This Row],[Výs. čas]]=\"čas\",\"---\",IF(Výsledky_MUŽI[[#This Row],[Výs. čas]]=99.99,\"---\",IF(Výsledky_MUŽI[[#This Row],[Výs. čas]]=\"Diskv.\",\"---\",IF(Výsledky_MUŽI[[#This Row],[Výs. čas]]=\"Neúčasť\",\"---\",_xlfn.RANK.EQ(Výsledky_MUŽI[[#This Row],[Výs. čas]],Výsledky_MUŽI[Výs. čas],1)))))","v":15},"Nedašov","ZL",16.11,17.09,{"$f":"IF(AND(ISBLANK(Výsledky_MUŽI[[#This Row],[PP]])),\"čas\",IF(Výsledky_MUŽI[[#This Row],[ĽP]]=\"D\",\"Diskv.\",IF(Výsledky_MUŽI[[#This Row],[PP]]=\"D\",\"Diskv.\",IF(Výsledky_MUŽI[[#This Row],[ĽP]]=\"n\",\"Neúčasť\",IF(Výsledky_MUŽI[[#This Row],[PP]]=\"n\",\"Neúčasť\",MAX(SUBSTITUTE(Výsledky_MUŽI[[#This Row],[ĽP]],\",\",\".\"),SUBSTITUTE(Výsledky_MUŽI[[#This Row],[PP]],\",\",\".\")))))))","v":17.09},{"$f":"IF(Výsledky_MUŽI[[#This Row],[Por.]]=1,20,IF(Výsledky_MUŽI[[#This Row],[Por.]]=2,17,IF(Výsledky_MUŽI[[#This Row],[Por.]]=3,15,IF(Výsledky_MUŽI[[#This Row],[Por.]]=4,13,IF(Výsledky_MUŽI[[#This Row],[Por.]]=5,11,IF(Výsledky_MUŽI[[#This Row],[Por.]]=6,9,IF(Výsledky_MUŽI[[#This Row],[Por.]]=7,8,IF(Výsledky_MUŽI[[#This Row],[Por.]]=8,7,IF(Výsledky_MUŽI[[#This Row],[Por.]]=9,6,IF(Výsledky_MUŽI[[#This Row],[Por.]]=10,5,IF(Výsledky_MUŽI[[#This Row],[Por.]]=11,4,IF(Výsledky_MUŽI[[#This Row],[Por.]]=12,3,IF(Výsledky_MUŽI[[#This Row],[Výs. čas]]=99.99,1,IF(Výsledky_MUŽI[[#This Row],[Výs. čas]]=\"Diskv.\",1,IF(Výsledky_MUŽI[[#This Row],[Výs. čas]]=\"Neúčasť\",0,2)))))))))))))))","v":2},null,null,null,null,null,"Prestup"]
[{"$f":"IF(Výsledky_MUŽI[[#This Row],[Výs. čas]]=\"čas\",\"---\",IF(Výsledky_MUŽI[[#This Row],[Výs. čas]]=99.99,\"---\",IF(Výsledky_MUŽI[[#This Row],[Výs. čas]]=\"Diskv.\",\"---\",IF(Výsledky_MUŽI[[#This Row],[Výs. čas]]=\"Neúčasť\",\"---\",_xlfn.RANK.EQ(Výsledky_MUŽI[[#This Row],[Výs. čas]],Výsledky_MUŽI[Výs. čas],1)))))","v":16},"Visolaje","PU",17.559999999999999,19.739999999999998,{"$f":"IF(AND(ISBLANK(Výsledky_MUŽI[[#This Row],[PP]])),\"čas\",IF(Výsledky_MUŽI[[#This Row],[ĽP]]=\"D\",\"Diskv.\",IF(Výsledky_MUŽI[[#This Row],[PP]]=\"D\",\"Diskv.\",IF(Výsledky_MUŽI[[#This Row],[ĽP]]=\"n\",\"Neúčasť\",IF(Výsledky_MUŽI[[#This Row],[PP]]=\"n\",\"Neúčasť\",MAX(SUBSTITUTE(Výsledky_MUŽI[[#This Row],[ĽP]],\",\",\".\"),SUBSTITUTE(Výsledky_MUŽI[[#This Row],[PP]],\",\",\".\")))))))","v":19.739999999999998},{"$f":"IF(Výsledky_MUŽI[[#This Row],[Por.]]=1,20,IF(Výsledky_MUŽI[[#This Row],[Por.]]=2,17,IF(Výsledky_MUŽI[[#This Row],[Por.]]=3,15,IF(Výsledky_MUŽI[[#This Row],[Por.]]=4,13,IF(Výsledky_MUŽI[[#This Row],[Por.]]=5,11,IF(Výsledky_MUŽI[[#This Row],[Por.]]=6,9,IF(Výsledky_MUŽI[[#This Row],[Por.]]=7,8,IF(Výsledky_MUŽI[[#This Row],[Por.]]=8,7,IF(Výsledky_MUŽI[[#This Row],[Por.]]=9,6,IF(Výsledky_MUŽI[[#This Row],[Por.]]=10,5,IF(Výsledky_MUŽI[[#This Row],[Por.]]=11,4,IF(Výsledky_MUŽI[[#This Row],[Por.]]=12,3,IF(Výsledky_MUŽI[[#This Row],[Výs. čas]]=99.99,1,IF(Výsledky_MUŽI[[#This Row],[Výs. čas]]=\"Diskv.\",1,IF(Výsledky_MUŽI[[#This Row],[Výs. čas]]=\"Neúčasť\",0,2)))))))))))))))","v":2},null,null,null,null,null,"X        --- ak malo družstvo prestup"]
[{"$f":"IF(Výsledky_MUŽI[[#This Row],[Výs. čas]]=\"čas\",\"---\",IF(Výsledky_MUŽI[[#This Row],[Výs. čas]]=99.99,\"---\",IF(Výsledky_MUŽI[[#This Row],[Výs. čas]]=\"Diskv.\",\"---\",IF(Výsledky_MUŽI[[#This Row],[Výs. čas]]=\"Neúčasť\",\"---\",_xlfn.RANK.EQ(Výsledky_MUŽI[[#This Row],[Výs. čas]],Výsledky_MUŽI[Výs. čas],1)))))","v":17},"Predmier","BY",20.010000000000002,17.420000000000002,{"$f":"IF(AND(ISBLANK(Výsledky_MUŽI[[#This Row],[PP]])),\"čas\",IF(Výsledky_MUŽI[[#This Row],[ĽP]]=\"D\",\"Diskv.\",IF(Výsledky_MUŽI[[#This Row],[PP]]=\"D\",\"Diskv.\",IF(Výsledky_MUŽI[[#This Row],[ĽP]]=\"n\",\"Neúčasť\",IF(Výsledky_MUŽI[[#This Row],[PP]]=\"n\",\"Neúčasť\",MAX(SUBSTITUTE(Výsledky_MUŽI[[#This Row],[ĽP]],\",\",\".\"),SUBSTITUTE(Výsledky_MUŽI[[#This Row],[PP]],\",\",\".\")))))))","v":20.010000000000002},{"$f":"IF(Výsledky_MUŽI[[#This Row],[Por.]]=1,20,IF(Výsledky_MUŽI[[#This Row],[Por.]]=2,17,IF(Výsledky_MUŽI[[#This Row],[Por.]]=3,15,IF(Výsledky_MUŽI[[#This Row],[Por.]]=4,13,IF(Výsledky_MUŽI[[#This Row],[Por.]]=5,11,IF(Výsledky_MUŽI[[#This Row],[Por.]]=6,9,IF(Výsledky_MUŽI[[#This Row],[Por.]]=7,8,IF(Výsledky_MUŽI[[#This Row],[Por.]]=8,7,IF(Výsledky_MUŽI[[#This Row],[Por.]]=9,6,IF(Výsledky_MUŽI[[#This Row],[Por.]]=10,5,IF(Výsledky_MUŽI[[#This Row],[Por.]]=11,4,IF(Výsledky_MUŽI[[#This Row],[Por.]]=12,3,IF(Výsledky_MUŽI[[#This Row],[Výs. čas]]=99.99,1,IF(Výsledky_MUŽI[[#This Row],[Výs. čas]]=\"Diskv.\",1,IF(Výsledky_MUŽI[[#This Row],[Výs. čas]]=\"Neúčasť\",0,2)))))))))))))))","v":2}]
[{"$f":"IF(Výsledky_MUŽI[[#This Row],[Výs. čas]]=\"čas\",\"---\",IF(Výsledky_MUŽI[[#This Row],[Výs. čas]]=99.99,\"---\",IF(Výsledky_MUŽI[[#This Row],[Výs. čas]]=\"Diskv.\",\"---\",IF(Výsledky_MUŽI[[#This Row],[Výs. čas]]=\"Neúčasť\",\"---\",_xlfn.RANK.EQ(Výsledky_MUŽI[[#This Row],[Výs. čas]],Výsledky_MUŽI[Výs. čas],1)))))","v":18},"Kvašov","PU",20.239999999999998,18.25,{"$f":"IF(AND(ISBLANK(Výsledky_MUŽI[[#This Row],[PP]])),\"čas\",IF(Výsledky_MUŽI[[#This Row],[ĽP]]=\"D\",\"Diskv.\",IF(Výsledky_MUŽI[[#This Row],[PP]]=\"D\",\"Diskv.\",IF(Výsledky_MUŽI[[#This Row],[ĽP]]=\"n\",\"Neúčasť\",IF(Výsledky_MUŽI[[#This Row],[PP]]=\"n\",\"Neúčasť\",MAX(SUBSTITUTE(Výsledky_MUŽI[[#This Row],[ĽP]],\",\",\".\"),SUBSTITUTE(Výsledky_MUŽI[[#This Row],[PP]],\",\",\".\")))))))","v":20.239999999999998},{"$f":"IF(Výsledky_MUŽI[[#This Row],[Por.]]=1,20,IF(Výsledky_MUŽI[[#This Row],[Por.]]=2,17,IF(Výsledky_MUŽI[[#This Row],[Por.]]=3,15,IF(Výsledky_MUŽI[[#This Row],[Por.]]=4,13,IF(Výsledky_MUŽI[[#This Row],[Por.]]=5,11,IF(Výsledky_MUŽI[[#This Row],[Por.]]=6,9,IF(Výsledky_MUŽI[[#This Row],[Por.]]=7,8,IF(Výsledky_MUŽI[[#This Row],[Por.]]=8,7,IF(Výsledky_MUŽI[[#This Row],[Por.]]=9,6,IF(Výsledky_MUŽI[[#This Row],[Por.]]=10,5,IF(Výsledky_MUŽI[[#This Row],[Por.]]=11,4,IF(Výsledky_MUŽI[[#This Row],[Por.]]=12,3,IF(Výsledky_MUŽI[[#This Row],[Výs. čas]]=99.99,1,IF(Výsledky_MUŽI[[#This Row],[Výs. čas]]=\"Diskv.\",1,IF(Výsledky_MUŽI[[#This Row],[Výs. čas]]=\"Neúčasť\",0,2)))))))))))))))","v":2},null,null,null,null,null,"TIP: Ak potrebujete do tabuľky pridať nový riadok, presuňte sa do stĺpca \"H\" posledného riadku a stačte klávesu TAB."]
[{"$f":"IF(Výsledky_MUŽI[[#This Row],[Výs. čas]]=\"čas\",\"---\",IF(Výsledky_MUŽI[[#This Row],[Výs. čas]]=99.99,\"---\",IF(Výsledky_MUŽI[[#This Row],[Výs. čas]]=\"Diskv.\",\"---\",IF(Výsledky_MUŽI[[#This Row],[Výs. čas]]=\"Neúčasť\",\"---\",_xlfn.RANK.EQ(Výsledky_MUŽI[[#This Row],[Výs. čas]],Výsledky_MUŽI[Výs. čas],1)))))","v":19},"Ďurďové A","PB",19.93,20.58,{"$f":"IF(AND(ISBLANK(Výsledky_MUŽI[[#This Row],[PP]])),\"čas\",IF(Výsledky_MUŽI[[#This Row],[ĽP]]=\"D\",\"Diskv.\",IF(Výsledky_MUŽI[[#This Row],[PP]]=\"D\",\"Diskv.\",IF(Výsledky_MUŽI[[#This Row],[ĽP]]=\"n\",\"Neúčasť\",IF(Výsledky_MUŽI[[#This Row],[PP]]=\"n\",\"Neúčasť\",MAX(SUBSTITUTE(Výsledky_MUŽI[[#This Row],[ĽP]],\",\",\".\"),SUBSTITUTE(Výsledky_MUŽI[[#This Row],[PP]],\",\",\".\")))))))","v":20.58},{"$f":"IF(Výsledky_MUŽI[[#This Row],[Por.]]=1,20,IF(Výsledky_MUŽI[[#This Row],[Por.]]=2,17,IF(Výsledky_MUŽI[[#This Row],[Por.]]=3,15,IF(Výsledky_MUŽI[[#This Row],[Por.]]=4,13,IF(Výsledky_MUŽI[[#This Row],[Por.]]=5,11,IF(Výsledky_MUŽI[[#This Row],[Por.]]=6,9,IF(Výsledky_MUŽI[[#This Row],[Por.]]=7,8,IF(Výsledky_MUŽI[[#This Row],[Por.]]=8,7,IF(Výsledky_MUŽI[[#This Row],[Por.]]=9,6,IF(Výsledky_MUŽI[[#This Row],[Por.]]=10,5,IF(Výsledky_MUŽI[[#This Row],[Por.]]=11,4,IF(Výsledky_MUŽI[[#This Row],[Por.]]=12,3,IF(Výsledky_MUŽI[[#This Row],[Výs. čas]]=99.99,1,IF(Výsledky_MUŽI[[#This Row],[Výs. čas]]=\"Diskv.\",1,IF(Výsledky_MUŽI[[#This Row],[Výs. čas]]=\"Neúčasť\",0,2)))))))))))))))","v":2}]
[{"$f":"IF(Výsledky_MUŽI[[#This Row],[Výs. čas]]=\"čas\",\"---\",IF(Výsledky_MUŽI[[#This Row],[Výs. čas]]=99.99,\"---\",IF(Výsledky_MUŽI[[#This Row],[Výs. čas]]=\"Diskv.\",\"---\",IF(Výsledky_MUŽI[[#This Row],[Výs. čas]]=\"Neúčasť\",\"---\",_xlfn.RANK.EQ(Výsledky_MUŽI[[#This Row],[Výs. čas]],Výsledky_MUŽI[Výs. čas],1)))))","v":20},"Horný Lieskov","PB",21.47,22.38,{"$f":"IF(AND(ISBLANK(Výsledky_MUŽI[[#This Row],[PP]])),\"čas\",IF(Výsledky_MUŽI[[#This Row],[ĽP]]=\"D\",\"Diskv.\",IF(Výsledky_MUŽI[[#This Row],[PP]]=\"D\",\"Diskv.\",IF(Výsledky_MUŽI[[#This Row],[ĽP]]=\"n\",\"Neúčasť\",IF(Výsledky_MUŽI[[#This Row],[PP]]=\"n\",\"Neúčasť\",MAX(SUBSTITUTE(Výsledky_MUŽI[[#This Row],[ĽP]],\",\",\".\"),SUBSTITUTE(Výsledky_MUŽI[[#This Row],[PP]],\",\",\".\")))))))","v":22.38},{"$f":"IF(Výsledky_MUŽI[[#This Row],[Por.]]=1,20,IF(Výsledky_MUŽI[[#This Row],[Por.]]=2,17,IF(Výsledky_MUŽI[[#This Row],[Por.]]=3,15,IF(Výsledky_MUŽI[[#This Row],[Por.]]=4,13,IF(Výsledky_MUŽI[[#This Row],[Por.]]=5,11,IF(Výsledky_MUŽI[[#This Row],[Por.]]=6,9,IF(Výsledky_MUŽI[[#This Row],[Por.]]=7,8,IF(Výsledky_MUŽI[[#This Row],[Por.]]=8,7,IF(Výsledky_MUŽI[[#This Row],[Por.]]=9,6,IF(Výsledky_MUŽI[[#This Row],[Por.]]=10,5,IF(Výsledky_MUŽI[[#This Row],[Por.]]=11,4,IF(Výsledky_MUŽI[[#This Row],[Por.]]=12,3,IF(Výsledky_MUŽI[[#This Row],[Výs. čas]]=99.99,1,IF(Výsledky_MUŽI[[#This Row],[Výs. čas]]=\"Diskv.\",1,IF(Výsledky_MUŽI[[#This Row],[Výs. čas]]=\"Neúčasť\",0,2)))))))))))))))","v":2}]
[{"$f":"IF(Výsledky_MUŽI[[#This Row],[Výs. čas]]=\"čas\",\"---\",IF(Výsledky_MUŽI[[#This Row],[Výs. čas]]=99.99,\"---\",IF(Výsledky_MUŽI[[#This Row],[Výs. čas]]=\"Diskv.\",\"---\",IF(Výsledky_MUŽI[[#This Row],[Výs. čas]]=\"Neúčasť\",\"---\",_xlfn.RANK.EQ(Výsledky_MUŽI[[#This Row],[Výs. čas]],Výsledky_MUŽI[Výs. čas],1)))))","v":21},"Hrabové","BY",25.2,15.87,{"$f":"IF(AND(ISBLANK(Výsledky_MUŽI[[#This Row],[PP]])),\"čas\",IF(Výsledky_MUŽI[[#This Row],[ĽP]]=\"D\",\"Diskv.\",IF(Výsledky_MUŽI[[#This Row],[PP]]=\"D\",\"Diskv.\",IF(Výsledky_MUŽI[[#This Row],[ĽP]]=\"n\",\"Neúčasť\",IF(Výsledky_MUŽI[[#This Row],[PP]]=\"n\",\"Neúčasť\",MAX(SUBSTITUTE(Výsledky_MUŽI[[#This Row],[ĽP]],\",\",\".\"),SUBSTITUTE(Výsledky_MUŽI[[#This Row],[PP]],\",\",\".\")))))))","v":25.2},{"$f":"IF(Výsledky_MUŽI[[#This Row],[Por.]]=1,20,IF(Výsledky_MUŽI[[#This Row],[Por.]]=2,17,IF(Výsledky_MUŽI[[#This Row],[Por.]]=3,15,IF(Výsledky_MUŽI[[#This Row],[Por.]]=4,13,IF(Výsledky_MUŽI[[#This Row],[Por.]]=5,11,IF(Výsledky_MUŽI[[#This Row],[Por.]]=6,9,IF(Výsledky_MUŽI[[#This Row],[Por.]]=7,8,IF(Výsledky_MUŽI[[#This Row],[Por.]]=8,7,IF(Výsledky_MUŽI[[#This Row],[Por.]]=9,6,IF(Výsledky_MUŽI[[#This Row],[Por.]]=10,5,IF(Výsledky_MUŽI[[#This Row],[Por.]]=11,4,IF(Výsledky_MUŽI[[#This Row],[Por.]]=12,3,IF(Výsledky_MUŽI[[#This Row],[Výs. čas]]=99.99,1,IF(Výsledky_MUŽI[[#This Row],[Výs. čas]]=\"Diskv.\",1,IF(Výsledky_MUŽI[[#This Row],[Výs. čas]]=\"Neúčasť\",0,2)))))))))))))))","v":2}]
[{"$f":"IF(Výsledky_MUŽI[[#This Row],[Výs. čas]]=\"čas\",\"---\",IF(Výsledky_MUŽI[[#This Row],[Výs. čas]]=99.99,\"---\",IF(Výsledky_MUŽI[[#This Row],[Výs. čas]]=\"Diskv.\",\"---\",IF(Výsledky_MUŽI[[#This Row],[Výs. čas]]=\"Neúčasť\",\"---\",_xlfn.RANK.EQ(Výsledky_MUŽI[[#This Row],[Výs. čas]],Výsledky_MUŽI[Výs. čas],1)))))","v":22},"Mikušovce ","IL",27.67,37.07,{"$f":"IF(AND(ISBLANK(Výsledky_MUŽI[[#This Row],[PP]])),\"čas\",IF(Výsledky_MUŽI[[#This Row],[ĽP]]=\"D\",\"Diskv.\",IF(Výsledky_MUŽI[[#This Row],[PP]]=\"D\",\"Diskv.\",IF(Výsledky_MUŽI[[#This Row],[ĽP]]=\"n\",\"Neúčasť\",IF(Výsledky_MUŽI[[#This Row],[PP]]=\"n\",\"Neúčasť\",MAX(SUBSTITUTE(Výsledky_MUŽI[[#This Row],[ĽP]],\",\",\".\"),SUBSTITUTE(Výsledky_MUŽI[[#This Row],[PP]],\",\",\".\")))))))","v":37.07},{"$f":"IF(Výsledky_MUŽI[[#This Row],[Por.]]=1,20,IF(Výsledky_MUŽI[[#This Row],[Por.]]=2,17,IF(Výsledky_MUŽI[[#This Row],[Por.]]=3,15,IF(Výsledky_MUŽI[[#This Row],[Por.]]=4,13,IF(Výsledky_MUŽI[[#This Row],[Por.]]=5,11,IF(Výsledky_MUŽI[[#This Row],[Por.]]=6,9,IF(Výsledky_MUŽI[[#This Row],[Por.]]=7,8,IF(Výsledky_MUŽI[[#This Row],[Por.]]=8,7,IF(Výsledky_MUŽI[[#This Row],[Por.]]=9,6,IF(Výsledky_MUŽI[[#This Row],[Por.]]=10,5,IF(Výsledky_MUŽI[[#This Row],[Por.]]=11,4,IF(Výsledky_MUŽI[[#This Row],[Por.]]=12,3,IF(Výsledky_MUŽI[[#This Row],[Výs. čas]]=99.99,1,IF(Výsledky_MUŽI[[#This Row],[Výs. čas]]=\"Diskv.\",1,IF(Výsledky_MUŽI[[#This Row],[Výs. čas]]=\"Neúčasť\",0,2)))))))))))))))","v":2}]
[{"$f":"IF(Výsledky_MUŽI[[#This Row],[Výs. čas]]=\"čas\",\"---\",IF(Výsledky_MUŽI[[#This Row],[Výs. čas]]=99.99,\"---\",IF(Výsledky_MUŽI[[#This Row],[Výs. čas]]=\"Diskv.\",\"---\",IF(Výsledky_MUŽI[[#This Row],[Výs. čas]]=\"Neúčasť\",\"---\",_xlfn.RANK.EQ(Výsledky_MUŽI[[#This Row],[Výs. čas]],Výsledky_MUŽI[Výs. čas],1)))))","v":"---"},"Oškerda","KM",99.99,99.99,{"$f":"IF(AND(ISBLANK(Výsledky_MUŽI[[#This Row],[PP]])),\"čas\",IF(Výsledky_MUŽI[[#This Row],[ĽP]]=\"D\",\"Diskv.\",IF(Výsledky_MUŽI[[#This Row],[PP]]=\"D\",\"Diskv.\",IF(Výsledky_MUŽI[[#This Row],[ĽP]]=\"n\",\"Neúčasť\",IF(Výsledky_MUŽI[[#This Row],[PP]]=\"n\",\"Neúčasť\",MAX(SUBSTITUTE(Výsledky_MUŽI[[#This Row],[ĽP]],\",\",\".\"),SUBSTITUTE(Výsledky_MUŽI[[#This Row],[PP]],\",\",\".\")))))))","v":99.99},{"$f":"IF(Výsledky_MUŽI[[#This Row],[Por.]]=1,20,IF(Výsledky_MUŽI[[#This Row],[Por.]]=2,17,IF(Výsledky_MUŽI[[#This Row],[Por.]]=3,15,IF(Výsledky_MUŽI[[#This Row],[Por.]]=4,13,IF(Výsledky_MUŽI[[#This Row],[Por.]]=5,11,IF(Výsledky_MUŽI[[#This Row],[Por.]]=6,9,IF(Výsledky_MUŽI[[#This Row],[Por.]]=7,8,IF(Výsledky_MUŽI[[#This Row],[Por.]]=8,7,IF(Výsledky_MUŽI[[#This Row],[Por.]]=9,6,IF(Výsledky_MUŽI[[#This Row],[Por.]]=10,5,IF(Výsledky_MUŽI[[#This Row],[Por.]]=11,4,IF(Výsledky_MUŽI[[#This Row],[Por.]]=12,3,IF(Výsledky_MUŽI[[#This Row],[Výs. čas]]=99.99,1,IF(Výsledky_MUŽI[[#This Row],[Výs. čas]]=\"Diskv.\",1,IF(Výsledky_MUŽI[[#This Row],[Výs. čas]]=\"Neúčasť\",0,2)))))))))))))))","v":1}]
[{"$f":"IF(Výsledky_MUŽI[[#This Row],[Výs. čas]]=\"čas\",\"---\",IF(Výsledky_MUŽI[[#This Row],[Výs. čas]]=99.99,\"---\",IF(Výsledky_MUŽI[[#This Row],[Výs. čas]]=\"Diskv.\",\"---\",IF(Výsledky_MUŽI[[#This Row],[Výs. čas]]=\"Neúčasť\",\"---\",_xlfn.RANK.EQ(Výsledky_MUŽI[[#This Row],[Výs. čas]],Výsledky_MUŽI[Výs. čas],1)))))","v":"---"},null,null,null,null,{"$f":"IF(AND(ISBLANK(Výsledky_MUŽI[[#This Row],[PP]])),\"čas\",IF(Výsledky_MUŽI[[#This Row],[ĽP]]=\"D\",\"Diskv.\",IF(Výsledky_MUŽI[[#This Row],[PP]]=\"D\",\"Diskv.\",IF(Výsledky_MUŽI[[#This Row],[ĽP]]=\"n\",\"Neúčasť\",IF(Výsledky_MUŽI[[#This Row],[PP]]=\"n\",\"Neúčasť\",MAX(SUBSTITUTE(Výsledky_MUŽI[[#This Row],[ĽP]],\",\",\".\"),SUBSTITUTE(Výsledky_MUŽI[[#This Row],[PP]],\",\",\".\")))))))","v":"čas"},{"$f":"IF(Výsledky_MUŽI[[#This Row],[Por.]]=1,20,IF(Výsledky_MUŽI[[#This Row],[Por.]]=2,17,IF(Výsledky_MUŽI[[#This Row],[Por.]]=3,15,IF(Výsledky_MUŽI[[#This Row],[Por.]]=4,13,IF(Výsledky_MUŽI[[#This Row],[Por.]]=5,11,IF(Výsledky_MUŽI[[#This Row],[Por.]]=6,9,IF(Výsledky_MUŽI[[#This Row],[Por.]]=7,8,IF(Výsledky_MUŽI[[#This Row],[Por.]]=8,7,IF(Výsledky_MUŽI[[#This Row],[Por.]]=9,6,IF(Výsledky_MUŽI[[#This Row],[Por.]]=10,5,IF(Výsledky_MUŽI[[#This Row],[Por.]]=11,4,IF(Výsledky_MUŽI[[#This Row],[Por.]]=12,3,IF(Výsledky_MUŽI[[#This Row],[Výs. čas]]=99.99,1,IF(Výsledky_MUŽI[[#This Row],[Výs. čas]]=\"Diskv.\",1,IF(Výsledky_MUŽI[[#This Row],[Výs. čas]]=\"Neúčasť\",0,2)))))))))))))))","v":2}]
[{"$f":"IF(Výsledky_MUŽI[[#This Row],[Výs. čas]]=\"čas\",\"---\",IF(Výsledky_MUŽI[[#This Row],[Výs. čas]]=99.99,\"---\",IF(Výsledky_MUŽI[[#This Row],[Výs. čas]]=\"Diskv.\",\"---\",IF(Výsledky_MUŽI[[#This Row],[Výs. čas]]=\"Neúčasť\",\"---\",_xlfn.RANK.EQ(Výsledky_MUŽI[[#This Row],[Výs. čas]],Výsledky_MUŽI[Výs. čas],1)))))","v":"---"},null,null,null,null,{"$f":"IF(AND(ISBLANK(Výsledky_MUŽI[[#This Row],[PP]])),\"čas\",IF(Výsledky_MUŽI[[#This Row],[ĽP]]=\"D\",\"Diskv.\",IF(Výsledky_MUŽI[[#This Row],[PP]]=\"D\",\"Diskv.\",IF(Výsledky_MUŽI[[#This Row],[ĽP]]=\"n\",\"Neúčasť\",IF(Výsledky_MUŽI[[#This Row],[PP]]=\"n\",\"Neúčasť\",MAX(SUBSTITUTE(Výsledky_MUŽI[[#This Row],[ĽP]],\",\",\".\"),SUBSTITUTE(Výsledky_MUŽI[[#This Row],[PP]],\",\",\".\")))))))","v":"čas"},{"$f":"IF(Výsledky_MUŽI[[#This Row],[Por.]]=1,20,IF(Výsledky_MUŽI[[#This Row],[Por.]]=2,17,IF(Výsledky_MUŽI[[#This Row],[Por.]]=3,15,IF(Výsledky_MUŽI[[#This Row],[Por.]]=4,13,IF(Výsledky_MUŽI[[#This Row],[Por.]]=5,11,IF(Výsledky_MUŽI[[#This Row],[Por.]]=6,9,IF(Výsledky_MUŽI[[#This Row],[Por.]]=7,8,IF(Výsledky_MUŽI[[#This Row],[Por.]]=8,7,IF(Výsledky_MUŽI[[#This Row],[Por.]]=9,6,IF(Výsledky_MUŽI[[#This Row],[Por.]]=10,5,IF(Výsledky_MUŽI[[#This Row],[Por.]]=11,4,IF(Výsledky_MUŽI[[#This Row],[Por.]]=12,3,IF(Výsledky_MUŽI[[#This Row],[Výs. čas]]=99.99,1,IF(Výsledky_MUŽI[[#This Row],[Výs. čas]]=\"Diskv.\",1,IF(Výsledky_MUŽI[[#This Row],[Výs. čas]]=\"Neúčasť\",0,2)))))))))))))))","v":2}]
[null,null,null,null,null,null,"Prestupov:",{"$f":"COUNTIF(Výsledky_MUŽI[Prestup],\"X\")","v":0}]

{"sheet":"Výsledky ŽENY","index":2,"n_rows":22,"n_cols":13,"rows_kept":22,"cut":false,"hidden":false,"merged":[[0,0,0,7],[0,12,1,12],[1,0,1,7],[21,12,22,12]]}
[{"$f":"'Vstupné údaje'!$B$4","v":"O putovný pohár starostu obce Lednica (10. kolo SMHL 2024)"},null,null,null,null,null,null,null,null,null,null,null,"Návod na plnohodnotnú prácu s výsledkami"]
[{"$f":"CONCATENATE(\"Výsledky \",'Vstupné údaje'!$B$7,\". kola SMHL \",TEXT('Vstupné údaje'!$B$5,\"yyyy\"),\" v kategórii ŽENY, ktoré sa konalo \",TEXT('Vstupné údaje'!$B$5,\"dd.mm.yyyy\"),\" o \",TEXT('Vstupné údaje'!$B$6,\"hh:mm\"))","v":"Výsledky 10. kola SMHL 2024 v kategórii ŽENY, ktoré sa konalo 21.07.2024 o 14:00"}]
[]
["Por.","Družstvo","Okres","ĽP","PP","Výs. čas","Body","Prestup",null,null,null,null,"Pri zadávaní výsledkov sa vypĺňajú nasledujúce stĺpce (zvyšné sa vypočítajú automaticky):"]
[{"$f":"IF(Výsledky_ŽENY[[#This Row],[Výs. čas]]=\"čas\",\"---\",IF(Výsledky_ŽENY[[#This Row],[Výs. čas]]=99.99,\"---\",IF(Výsledky_ŽENY[[#This Row],[Výs. čas]]=\"Diskv.\",\"---\",IF(Výsledky_ŽENY[[#This Row],[Výs. čas]]=\"Neúčasť\",\"---\",_xlfn.RANK.EQ(Výsledky_ŽENY[[#This Row],[Výs. čas]],Výsledky_ŽENY[Výs. čas],1)))))","v":1},"Dulov","IL",16.47,16.21,{"$f":"IF(AND(ISBLANK(Výsledky_ŽENY[[#This Row],[PP]])),\"čas\",IF(Výsledky_ŽENY[[#This Row],[ĽP]]=\"D\",\"Diskv.\",IF(Výsledky_ŽENY[[#This Row],[PP]]=\"D\",\"Diskv.\",IF(Výsledky_ŽENY[[#This Row],[ĽP]]=\"n\",\"Neúčasť\",IF(Výsledky_ŽENY[[#This Row],[PP]]=\"n\",\"Neúčasť\",MAX(SUBSTITUTE(Výsledky_ŽENY[[#This Row],[ĽP]],\",\",\".\"),SUBSTITUTE(Výsledky_ŽENY[[#This Row],[PP]],\",\",\".\")))))))","v":16.47},{"$f":"IF(Výsledky_ŽENY[[#This Row],[Por.]]=1,10,IF(Výsledky_ŽENY[[#This Row],[Por.]]=2,8,IF(Výsledky_ŽENY[[#This Row],[Por.]]=3,6,IF(Výsledky_ŽENY[[#This Row],[Por.]]=4,4,IF(Výsledky_ŽENY[[#This Row],[Por.]]=5,2,IF(Výsledky_ŽENY[[#This Row],[Výs. čas]]=99.99,1,IF(Výsledky_ŽENY[[#This Row],[Výs. čas]]=\"Diskv.\",1,IF(Výsledky_ŽENY[[#This Row],[Výs. čas]]=\"Neúčasť\",0,2))))))))","v":10},null,null,null,null,null,"--- družstvo"]
[{"$f":"IF(Výsledky_ŽENY[[#This Row],[Výs. čas]]=\"čas\",\"---\",IF(Výsledky_ŽENY[[#This Row],[Výs. čas]]=99.99,\"---\",IF(Výsledky_ŽENY[[#This Row],[Výs. čas]]=\"Diskv.\",\"---\",IF(Výsledky_ŽENY[[#This Row],[Výs. čas]]=\"Neúčasť\",\"---\",_xlfn.RANK.EQ(Výsledky_ŽENY[[#This Row],[Výs. čas]],Výsledky_ŽENY[Výs. čas],1)))))","v":2},"Nosice – žabky B","PU",17.34,17.239999999999998,{"$f":"IF(AND(ISBLANK(Výsledky_ŽENY[[#This Row],[PP]])),\"čas\",IF(Výsledky_ŽENY[[#This Row],[ĽP]]=\"D\",\"Diskv.\",IF(Výsledky_ŽENY[[#This Row],[PP]]=\"D\",\"Diskv.\",IF(Výsledky_ŽENY[[#This Row],[ĽP]]=\"n\",\"Neúčasť\",IF(Výsledky_ŽENY[[#This Row],[PP]]=\"n\",\"Neúčasť\",MAX(SUBSTITUTE(Výsledky_ŽENY[[#This Row],[ĽP]],\",\",\".\"),SUBSTITUTE(Výsledky_ŽENY[[#This Row],[PP]],\",\",\".\")))))))","v":17.34},{"$f":"IF(Výsledky_ŽENY[[#This Row],[Por.]]=1,10,IF(Výsledky_ŽENY[[#This Row],[Por.]]=2,8,IF(Výsledky_ŽENY[[#This Row],[Por.]]=3,6,IF(Výsledky_ŽENY[[#This Row],[Por.]]=4,4,IF(Výsledky_ŽENY[[#This Row],[Por.]]=5,2,IF(Výsledky_ŽENY[[#This Row],[Výs. čas]]=99.99,1,IF(Výsledky_ŽENY[[#This Row],[Výs. čas]]=\"Diskv.\",1,IF(Výsledky_ŽENY[[#This Row],[Výs. čas]]=\"Neúčasť\",0,2))))))))","v":8},null,null,null,null,null,"--- okres"]
[{"$f":"IF(Výsledky_ŽENY[[#This Row],[Výs. čas]]=\"čas\",\"---\",IF(Výsledky_ŽENY[[#This Row],[Výs. čas]]=99.99,\"---\",IF(Výsledky_ŽENY[[#This Row],[Výs. čas]]=\"Diskv.\",\"---\",IF(Výsledky_ŽENY[[#This Row],[Výs. čas]]=\"Neúčasť\",\"---\",_xlfn.RANK.EQ(Výsledky_ŽENY[[#This Row],[Výs. čas]],Výsledky_ŽENY[Výs. čas],1)))))","v":3},"Zlatníky","BN",18.739999999999998,16.54,{"$f":"IF(AND(ISBLANK(Výsledky_ŽENY[[#This Row],[PP]])),\"čas\",IF(Výsledky_ŽENY[[#This Row],[ĽP]]=\"D\",\"Diskv.\",IF(Výsledky_ŽENY[[#This Row],[PP]]=\"D\",\"Diskv.\",IF(Výsledky_ŽENY[[#This Row],[ĽP]]=\"n\",\"Neúčasť\",IF(Výsledky_ŽENY[[#This Row],[PP]]=\"n\",\"Neúčasť\",MAX(SUBSTITUTE(Výsledky_ŽENY[[#This Row],[ĽP]],\",\",\".\"),SUBSTITUTE(Výsledky_ŽENY[[#This Row],[PP]],\",\",\".\")))))))","v":18.739999999999998},{"$f":"IF(Výsledky_ŽENY[[#This Row],[Por.]]=1,10,IF(Výsledky_ŽENY[[#This Row],[Por.]]=2,8,IF(Výsledky_ŽENY[[#This Row],[Por.]]=3,6,IF(Výsledky_ŽENY[[#This Row],[Por.]]=4,4,IF(Výsledky_ŽENY[[#This Row],[Por.]]=5,2,IF(Výsledky_ŽENY[[#This Row],[Výs. čas]]=99.99,1,IF(Výsledky_ŽENY[[#This Row],[Výs. čas]]=\"Diskv.\",1,IF(Výsledky_ŽENY[[#This Row],[Výs. čas]]=\"Neúčasť\",0,2))))))))","v":6},null,null,null,null,null,"--- ľavý prúd (ĽP)"]
[{"$f":"IF(Výsledky_ŽENY[[#This Row],[Výs. čas]]=\"čas\",\"---\",IF(Výsledky_ŽENY[[#This Row],[Výs. čas]]=99.99,\"---\",IF(Výsledky_ŽENY[[#This Row],[Výs. čas]]=\"Diskv.\",\"---\",IF(Výsledky_ŽENY[[#This Row],[Výs. čas]]=\"Neúčasť\",\"---\",_xlfn.RANK.EQ(Výsledky_ŽENY[[#This Row],[Výs. čas]],Výsledky_ŽENY[Výs. čas],1)))))","v":3},"Nedašov","ZL",17.97,18.739999999999998,{"$f":"IF(AND(ISBLANK(Výsledky_ŽENY[[#This Row],[PP]])),\"čas\",IF(Výsledky_ŽENY[[#This Row],[ĽP]]=\"D\",\"Diskv.\",IF(Výsledky_ŽENY[[#This Row],[PP]]=\"D\",\"Diskv.\",IF(Výsledky_ŽENY[[#This Row],[ĽP]]=\"n\",\"Neúčasť\",IF(Výsledky_ŽENY[[#This Row],[PP]]=\"n\",\"Neúčasť\",MAX(SUBSTITUTE(Výsledky_ŽENY[[#This Row],[ĽP]],\",\",\".\"),SUBSTITUTE(Výsledky_ŽENY[[#This Row],[PP]],\",\",\".\")))))))","v":18.739999999999998},{"$f":"IF(Výsledky_ŽENY[[#This Row],[Por.]]=1,10,IF(Výsledky_ŽENY[[#This Row],[Por.]]=2,8,IF(Výsledky_ŽENY[[#This Row],[Por.]]=3,6,IF(Výsledky_ŽENY[[#This Row],[Por.]]=4,4,IF(Výsledky_ŽENY[[#This Row],[Por.]]=5,2,IF(Výsledky_ŽENY[[#This Row],[Výs. čas]]=99.99,1,IF(Výsledky_ŽENY[[#This Row],[Výs. čas]]=\"Diskv.\",1,IF(Výsledky_ŽENY[[#This Row],[Výs. čas]]=\"Neúčasť\",0,2))))))))","v":6},null,null,null,null,null,"--- pravý prúd (PP)"]
[{"$f":"IF(Výsledky_ŽENY[[#This Row],[Výs. čas]]=\"čas\",\"---\",IF(Výsledky_ŽENY[[#This Row],[Výs. čas]]=99.99,\"---\",IF(Výsledky_ŽENY[[#This Row],[Výs. čas]]=\"Diskv.\",\"---\",IF(Výsledky_ŽENY[[#This Row],[Výs. čas]]=\"Neúčasť\",\"---\",_xlfn.RANK.EQ(Výsledky_ŽENY[[#This Row],[Výs. čas]],Výsledky_ŽENY[Výs. čas],1)))))","v":5},"Nedašova Lhota","ZL",22.86,18.13,{"$f":"IF(AND(ISBLANK(Výsledky_ŽENY[[#This Row],[PP]])),\"čas\",IF(Výsledky_ŽENY[[#This Row],[ĽP]]=\"D\",\"Diskv.\",IF(Výsledky_ŽENY[[#This Row],[PP]]=\"D\",\"Diskv.\",IF(Výsledky_ŽENY[[#This Row],[ĽP]]=\"n\",\"Neúčasť\",IF(Výsledky_ŽENY[[#This Row],[PP]]=\"n\",\"Neúčasť\",MAX(SUBSTITUTE(Výsledky_ŽENY[[#This Row],[ĽP]],\",\",\".\"),SUBSTITUTE(Výsledky_ŽENY[[#This Row],[PP]],\",\",\".\")))))))","v":22.86},{"$f":"IF(Výsledky_ŽENY[[#This Row],[Por.]]=1,10,IF(Výsledky_ŽENY[[#This Row],[Por.]]=2,8,IF(Výsledky_ŽENY[[#This Row],[Por.]]=3,6,IF(Výsledky_ŽENY[[#This Row],[Por.]]=4,4,IF(Výsledky_ŽENY[[#This Row],[Por.]]=5,2,IF(Výsledky_ŽENY[[#This Row],[Výs. čas]]=99.99,1,IF(Výsledky_ŽENY[[#This Row],[Výs. čas]]=\"Diskv.\",1,IF(Výsledky_ŽENY[[#This Row],[Výs. čas]]=\"Neúčasť\",0,2))))))))","v":2},null,null,null,null,null,"--- prestup"]
[{"$f":"IF(Výsledky_ŽENY[[#This Row],[Výs. čas]]=\"čas\",\"---\",IF(Výsledky_ŽENY[[#This Row],[Výs. čas]]=99.99,\"---\",IF(Výsledky_ŽENY[[#This Row],[Výs. čas]]=\"Diskv.\",\"---\",IF(Výsledky_ŽENY[[#This Row],[Výs. čas]]=\"Neúčasť\",\"---\",_xlfn.RANK.EQ(Výsledky_ŽENY[[#This Row],[Výs. čas]],Výsledky_ŽENY[Výs. čas],1)))))","v":6},"Kvašov","PU",23.18,18.899999999999999,{"$f":"IF(AND(ISBLANK(Výsledky_ŽENY[[#This Row],[PP]])),\"čas\",IF(Výsledky_ŽENY[[#This Row],[ĽP]]=\"D\",\"Diskv.\",IF(Výsledky_ŽENY[[#This Row],[PP]]=\"D\",\"Diskv.\",IF(Výsledky_ŽENY[[#This Row],[ĽP]]=\"n\",\"Neúčasť\",IF(Výsledky_ŽENY[[#This Row],[PP]]=\"n\",\"Neúčasť\",MAX(SUBSTITUTE(Výsledky_ŽENY[[#This Row],[ĽP]],\",\",\".\"),SUBSTITUTE(Výsledky_ŽENY[[#This Row],[PP]],\",\",\".\")))))))","v":23.18},{"$f":"IF(Výsledky_ŽENY[[#This Row],[Por.]]=1,10,IF(Výsledky_ŽENY[[#This Row],[Por.]]=2,8,IF(Výsledky_ŽENY[[#This Row],[Por.]]=3,6,IF(Výsledky_ŽENY[[#This Row],[Por.]]=4,4,IF(Výsledky_ŽENY[[#This Row],[Por.]]=5,2,IF(Výsledky_ŽENY[[#This Row],[Výs. čas]]=99.99,1,IF(Výsledky_ŽENY[[#This Row],[Výs. čas]]=\"Diskv.\",1,IF(Výsledky_ŽENY[[#This Row],[Výs. čas]]=\"Neúčasť\",0,2))))))))","v":2}]
[{"$f":"IF(Výsledky_ŽENY[[#This Row],[Výs. čas]]=\"čas\",\"---\",IF(Výsledky_ŽENY[[#This Row],[Výs. čas]]=99.99,\"---\",IF(Výsledky_ŽENY[[#This Row],[Výs. čas]]=\"Diskv.\",\"---\",IF(Výsledky_ŽENY[[#This Row],[Výs. čas]]=\"Neúčasť\",\"---\",_xlfn.RANK.EQ(Výsledky_ŽENY[[#This Row],[Výs. čas]],Výsledky_ŽENY[Výs. čas],1)))))","v":7},"Horná Ves","PD",28.38,22.59,{"$f":"IF(AND(ISBLANK(Výsledky_ŽENY[[#This Row],[PP]])),\"čas\",IF(Výsledky_ŽENY[[#This Row],[ĽP]]=\"D\",\"Diskv.\",IF(Výsledky_ŽENY[[#This Row],[PP]]=\"D\",\"Diskv.\",IF(Výsledky_ŽENY[[#This Row],[ĽP]]=\"n\",\"Neúčasť\",IF(Výsledky_ŽENY[[#This Row],[PP]]=\"n\",\"Neúčasť\",MAX(SUBSTITUTE(Výsledky_ŽENY[[#This Row],[ĽP]],\",\",\".\"),SUBSTITUTE(Výsledky_ŽENY[[#This Row],[PP]],\",\",\".\")))))))","v":28.38},{"$f":"IF(Výsledky_ŽENY[[#This Row],[Por.]]=1,10,IF(Výsledky_ŽENY[[#This Row],[Por.]]=2,8,IF(Výsledky_ŽENY[[#This Row],[Por.]]=3,6,IF(Výsledky_ŽENY[[#This Row],[Por.]]=4,4,IF(Výsledky_ŽENY[[#This Row],[Por.]]=5,2,IF(Výsledky_ŽENY[[#This Row],[Výs. čas]]=99.99,1,IF(Výsledky_ŽENY[[#This Row],[Výs. čas]]=\"Diskv.\",1,IF(Výsledky_ŽENY[[#This Row],[Výs. čas]]=\"Neúčasť\",0,2))))))))","v":2},null,null,null,null,null,"Dovolený formát zadávaných údajov:"]
[{"$f":"IF(Výsledky_ŽENY[[#This Row],[Výs. čas]]=\"čas\",\"---\",IF(Výsledky_ŽENY[[#This Row],[Výs. čas]]=99.99,\"---\",IF(Výsledky_ŽENY[[#This Row],[Výs. čas]]=\"Diskv.\",\"---\",IF(Výsledky_ŽENY[[#This Row],[Výs. čas]]=\"Neúčasť\",\"---\",_xlfn.RANK.EQ(Výsledky_ŽENY[[#This Row],[Výs. čas]],Výsledky_ŽENY[Výs. čas],1)))))","v":"---"},null,null,null,null,{"$f":"IF(AND(ISBLANK(Výsledky_ŽENY[[#This Row],[PP]])),\"čas\",IF(Výsledky_ŽENY[[#This Row],[ĽP]]=\"D\",\"Diskv.\",IF(Výsledky_ŽENY[[#This Row],[PP]]=\"D\",\"Diskv.\",IF(Výsledky_ŽENY[[#This Row],[ĽP]]=\"n\",\"Neúčasť\",IF(Výsledky_ŽENY[[#This Row],[PP]]=\"n\",\"Neúčasť\",MAX(SUBSTITUTE(Výsledky_ŽENY[[#This Row],[ĽP]],\",\",\".\"),SUBSTITUTE(Výsledky_ŽENY[[#This Row],[PP]],\",\",\".\")))))))","v":"čas"},{"$f":"IF(Výsledky_ŽENY[[#This Row],[Por.]]=1,10,IF(Výsledky_ŽENY[[#This Row],[Por.]]=2,8,IF(Výsledky_ŽENY[[#This Row],[Por.]]=3,6,IF(Výsledky_ŽENY[[#This Row],[Por.]]=4,4,IF(Výsledky_ŽENY[[#This Row],[Por.]]=5,2,IF(Výsledky_ŽENY[[#This Row],[Výs. čas]]=99.99,1,IF(Výsledky_ŽENY[[#This Row],[Výs. čas]]=\"Diskv.\",1,IF(Výsledky_ŽENY[[#This Row],[Výs. čas]]=\"Neúčasť\",0,2))))))))","v":2},null,null,null,null,null,"Družstvo, okres"]
[{"$f":"IF(Výsledky_ŽENY[[#This Row],[Výs. čas]]=\"čas\",\"---\",IF(Výsledky_ŽENY[[#This Row],[Výs. čas]]=99.99,\"---\",IF(Výsledky_ŽENY[[#This Row],[Výs. čas]]=\"Diskv.\",\"---\",IF(Výsledky_ŽENY[[#This Row],[Výs. čas]]=\"Neúčasť\",\"---\",_xlfn.RANK.EQ(Výsledky_ŽENY[[#This Row],[Výs. čas]],Výsledky_ŽENY[Výs. čas],1)))))","v":"---"},null,null,null,null,{"$f":"IF(AND(ISBLANK(Výsledky_ŽENY[[#This Row],[PP]])),\"čas\",IF(Výsledky_ŽENY[[#This Row],[ĽP]]=\"D\",\"Diskv.\",IF(Výsledky_ŽENY[[#This Row],[PP]]=\"D\",\"Diskv.\",IF(Výsledky_ŽENY[[#This Row],[ĽP]]=\"n\",\"Neúčasť\",IF(Výsledky_ŽENY[[#This Row],[PP]]=\"n\",\"Neúčasť\",MAX(SUBSTITUTE(Výsledky_ŽENY[[#This Row],[ĽP]],\",\",\".\"),SUBSTITUTE(Výsledky_ŽENY[[#This Row],[PP]],\",\",\".\")))))))","v":"čas"},{"$f":"IF(Výsledky_ŽENY[[#This Row],[Por.]]=1,10,IF(Výsledky_ŽENY[[#This Row],[Por.]]=2,8,IF(Výsledky_ŽENY[[#This Row],[Por.]]=3,6,IF(Výsledky_ŽENY[[#This Row],[Por.]]=4,4,IF(Výsledky_ŽENY[[#This Row],[Por.]]=5,2,IF(Výsledky_ŽENY[[#This Row],[Výs. čas]]=99.99,1,IF(Výsledky_ŽENY[[#This Row],[Výs. čas]]=\"Diskv.\",1,IF(Výsledky_ŽENY[[#This Row],[Výs. čas]]=\"Neúčasť\",0,2))))))))","v":2},null,null,null,null,null,"--- ľubovoľný text"]
[{"$f":"IF(Výsledky_ŽENY[[#This Row],[Výs. čas]]=\"čas\",\"---\",IF(Výsledky_ŽENY[[#This Row],[Výs. čas]]=99.99,\"---\",IF(Výsledky_ŽENY[[#This Row],[Výs. čas]]=\"Diskv.\",\"---\",IF(Výsledky_ŽENY[[#This Row],[Výs. čas]]=\"Neúčasť\",\"---\",_xlfn.RANK.EQ(Výsledky_ŽENY[[#This Row],[Výs. čas]],Výsledky_ŽENY[Výs. čas],1)))))","v":"---"},null,null,null,null,{"$f":"IF(AND(ISBLANK(Výsledky_ŽENY[[#This Row],[PP]])),\"čas\",IF(Výsledky_ŽENY[[#This Row],[ĽP]]=\"D\",\"Diskv.\",IF(Výsledky_ŽENY[[#This Row],[PP]]=\"D\",\"Diskv.\",IF(Výsledky_ŽENY[[#This Row],[ĽP]]=\"n\",\"Neúčasť\",IF(Výsledky_ŽENY[[#This Row],[PP]]=\"n\",\"Neúčasť\",MAX(SUBSTITUTE(Výsledky_ŽENY[[#This Row],[ĽP]],\",\",\".\"),SUBSTITUTE(Výsledky_ŽENY[[#This Row],[PP]],\",\",\".\")))))))","v":"čas"},{"$f":"IF(Výsledky_ŽENY[[#This Row],[Por.]]=1,10,IF(Výsledky_ŽENY[[#This Row],[Por.]]=2,8,IF(Výsledky_ŽENY[[#This Row],[Por.]]=3,6,IF(Výsledky_ŽENY[[#This Row],[Por.]]=4,4,IF(Výsledky_ŽENY[[#This Row],[Por.]]=5,2,IF(Výsledky_ŽENY[[#This Row],[Výs. čas]]=99.99,1,IF(Výsledky_ŽENY[[#This Row],[Výs. čas]]=\"Diskv.\",1,IF(Výsledky_ŽENY[[#This Row],[Výs. čas]]=\"Neúčasť\",0,2))))))))","v":2},null,null,null,null,null,"Ľavý/pravý prúd"]
[null,null,null,null,null,null,"Prestupov:",{"$f":"COUNTIF(Výsledky_ŽENY[Prestup],\"X\")","v":0},null,null,null,null,"14.00 --- dokončený pokus"]
[null,null,null,null,null,null,null,null,null,null,null,null,"99.99 --- nedokončený pokus"]
[null,null,null,null,null,null,null,null,null,null,null,null,"D        --- diskvalifikácia družstva"]
[null,null,null,null,null,null,null,null,null,null,null,null,"N        --- neúčasť družstva"]
[null,null,null,null,null,null,null,null,null,null,null,null,"Prestup"]
[null,null,null,null,null,null,null,null,null,null,null,null,"X        --- ak malo družstvo prestup"]
[]
[null,null,null,null,null,null,null,null,null,null,null,null,"TIP: Ak potrebujete do tabuľky pridať nový riadok, presuňte sa do stĺpca \"H\" posledného riadku a stačte klávesu TAB."]

{"sheet":"Výsledky MUŽI nad 35 rokov","index":3,"n_rows":22,"n_cols":13,"rows_kept":22,"cut":false,"hidden":false,"merged":[[0,0,0,7],[0,12,1,12],[1,0,1,7],[21,12,22,12]]}
[{"$f":"'Vstupné údaje'!$B$4","v":"O putovný pohár starostu obce Lednica (10. kolo SMHL 2024)"},null,null,null,null,null,null,null,null,null,null,null,"Návod na plnohodnotnú prácu s výsledkami"]
[{"$f":"CONCATENATE(\"Výsledky \",'Vstupné údaje'!$B$7,\". kola SMHL \",TEXT('Vstupné údaje'!$B$5,\"yyyy\"),\" v kategórii MUŽI nad 35 rokov, ktoré sa konalo \",TEXT('Vstupné údaje'!$B$5,\"dd.mm.yyyy\"),\" o \",TEXT('Vstupné údaje'!$B$6,\"hh:mm\"))","v":"Výsledky 10. kola SMHL 2024 v kategórii MUŽI nad 35 rokov, ktoré sa konalo 21.07.2024 o 14:00"}]
[]
["Por.","Družstvo","Okres","ĽP","PP","Výs. čas","Body","Prestup",null,null,null,null,"Pri zadávaní výsledkov sa vypĺňajú nasledujúce stĺpce (zvyšné sa vypočítajú automaticky):"]
[{"$f":"IF(Výsledky_ŽENY9[[#This Row],[Výs. čas]]=\"čas\",\"---\",IF(Výsledky_ŽENY9[[#This Row],[Výs. čas]]=99.99,\"---\",IF(Výsledky_ŽENY9[[#This Row],[Výs. čas]]=\"Diskv.\",\"---\",IF(Výsledky_ŽENY9[[#This Row],[Výs. čas]]=\"Neúčasť\",\"---\",_xlfn.RANK.EQ(Výsledky_ŽENY9[[#This Row],[Výs. čas]],Výsledky_ŽENY9[Výs. čas],1)))))","v":1},"Ihrište","PU",15.13,15,{"$f":"IF(AND(ISBLANK(Výsledky_ŽENY9[[#This Row],[PP]])),\"čas\",IF(Výsledky_ŽENY9[[#This Row],[ĽP]]=\"D\",\"Diskv.\",IF(Výsledky_ŽENY9[[#This Row],[PP]]=\"D\",\"Diskv.\",IF(Výsledky_ŽENY9[[#This Row],[ĽP]]=\"n\",\"Neúčasť\",IF(Výsledky_ŽENY9[[#This Row],[PP]]=\"n\",\"Neúčasť\",MAX(SUBSTITUTE(Výsledky_ŽENY9[[#This Row],[ĽP]],\",\",\".\"),SUBSTITUTE(Výsledky_ŽENY9[[#This Row],[PP]],\",\",\".\")))))))","v":15.13},{"$f":"IF(Výsledky_ŽENY9[[#This Row],[Por.]]=1,10,IF(Výsledky_ŽENY9[[#This Row],[Por.]]=2,8,IF(Výsledky_ŽENY9[[#This Row],[Por.]]=3,6,IF(Výsledky_ŽENY9[[#This Row],[Por.]]=4,4,IF(Výsledky_ŽENY9[[#This Row],[Por.]]=5,2,IF(Výsledky_ŽENY9[[#This Row],[Výs. čas]]=99.99,1,IF(Výsledky_ŽENY9[[#This Row],[Výs. čas]]=\"Diskv.\",1,IF(Výsledky_ŽENY9[[#This Row],[Výs. čas]]=\"Neúčasť\",0,2))))))))","v":10},null,null,null,null,null,"--- družstvo"]
[{"$f":"IF(Výsledky_ŽENY9[[#This Row],[Výs. čas]]=\"čas\",\"---\",IF(Výsledky_ŽENY9[[#This Row],[Výs. čas]]=99.99,\"---\",IF(Výsledky_ŽENY9[[#This Row],[Výs. čas]]=\"Diskv.\",\"---\",IF(Výsledky_ŽENY9[[#This Row],[Výs. čas]]=\"Neúčasť\",\"---\",_xlfn.RANK.EQ(Výsledky_ŽENY9[[#This Row],[Výs. čas]],Výsledky_ŽENY9[Výs. čas],1)))))","v":2},"Lehota pod Vtáčnikom","PD",16.63,16,{"$f":"IF(AND(ISBLANK(Výsledky_ŽENY9[[#This Row],[PP]])),\"čas\",IF(Výsledky_ŽENY9[[#This Row],[ĽP]]=\"D\",\"Diskv.\",IF(Výsledky_ŽENY9[[#This Row],[PP]]=\"D\",\"Diskv.\",IF(Výsledky_ŽENY9[[#This Row],[ĽP]]=\"n\",\"Neúčasť\",IF(Výsledky_ŽENY9[[#This Row],[PP]]=\"n\",\"Neúčasť\",MAX(SUBSTITUTE(Výsledky_ŽENY9[[#This Row],[ĽP]],\",\",\".\"),SUBSTITUTE(Výsledky_ŽENY9[[#This Row],[PP]],\",\",\".\")))))))","v":16.63},{"$f":"IF(Výsledky_ŽENY9[[#This Row],[Por.]]=1,10,IF(Výsledky_ŽENY9[[#This Row],[Por.]]=2,8,IF(Výsledky_ŽENY9[[#This Row],[Por.]]=3,6,IF(Výsledky_ŽENY9[[#This Row],[Por.]]=4,4,IF(Výsledky_ŽENY9[[#This Row],[Por.]]=5,2,IF(Výsledky_ŽENY9[[#This Row],[Výs. čas]]=99.99,1,IF(Výsledky_ŽENY9[[#This Row],[Výs. čas]]=\"Diskv.\",1,IF(Výsledky_ŽENY9[[#This Row],[Výs. čas]]=\"Neúčasť\",0,2))))))))","v":8},null,null,null,null,null,"--- okres"]
[{"$f":"IF(Výsledky_ŽENY9[[#This Row],[Výs. čas]]=\"čas\",\"---\",IF(Výsledky_ŽENY9[[#This Row],[Výs. čas]]=99.99,\"---\",IF(Výsledky_ŽENY9[[#This Row],[Výs. čas]]=\"Diskv.\",\"---\",IF(Výsledky_ŽENY9[[#This Row],[Výs. čas]]=\"Neúčasť\",\"---\",_xlfn.RANK.EQ(Výsledky_ŽENY9[[#This Row],[Výs. čas]],Výsledky_ŽENY9[Výs. čas],1)))))","v":3},"Bystričany","PD",15.96,17.440000000000001,{"$f":"IF(AND(ISBLANK(Výsledky_ŽENY9[[#This Row],[PP]])),\"čas\",IF(Výsledky_ŽENY9[[#This Row],[ĽP]]=\"D\",\"Diskv.\",IF(Výsledky_ŽENY9[[#This Row],[PP]]=\"D\",\"Diskv.\",IF(Výsledky_ŽENY9[[#This Row],[ĽP]]=\"n\",\"Neúčasť\",IF(Výsledky_ŽENY9[[#This Row],[PP]]=\"n\",\"Neúčasť\",MAX(SUBSTITUTE(Výsledky_ŽENY9[[#This Row],[ĽP]],\",\",\".\"),SUBSTITUTE(Výsledky_ŽENY9[[#This Row],[PP]],\",\",\".\")))))))","v":17.440000000000001},{"$f":"IF(Výsledky_ŽENY9[[#This Row],[Por.]]=1,10,IF(Výsledky_ŽENY9[[#This Row],[Por.]]=2,8,IF(Výsledky_ŽENY9[[#This Row],[Por.]]=3,6,IF(Výsledky_ŽENY9[[#This Row],[Por.]]=4,4,IF(Výsledky_ŽENY9[[#This Row],[Por.]]=5,2,IF(Výsledky_ŽENY9[[#This Row],[Výs. čas]]=99.99,1,IF(Výsledky_ŽENY9[[#This Row],[Výs. čas]]=\"Diskv.\",1,IF(Výsledky_ŽENY9[[#This Row],[Výs. čas]]=\"Neúčasť\",0,2))))))))","v":6},null,null,null,null,null,"--- ľavý prúd (ĽP)"]
[{"$f":"IF(Výsledky_ŽENY9[[#This Row],[Výs. čas]]=\"čas\",\"---\",IF(Výsledky_ŽENY9[[#This Row],[Výs. čas]]=99.99,\"---\",IF(Výsledky_ŽENY9[[#This Row],[Výs. čas]]=\"Diskv.\",\"---\",IF(Výsledky_ŽENY9[[#This Row],[Výs. čas]]=\"Neúčasť\",\"---\",_xlfn.RANK.EQ(Výsledky_ŽENY9[[#This Row],[Výs. čas]],Výsledky_ŽENY9[Výs. čas],1)))))","v":4},"Nosice","PU",28.03,22.06,{"$f":"IF(AND(ISBLANK(Výsledky_ŽENY9[[#This Row],[PP]])),\"čas\",IF(Výsledky_ŽENY9[[#This Row],[ĽP]]=\"D\",\"Diskv.\",IF(Výsledky_ŽENY9[[#This Row],[PP]]=\"D\",\"Diskv.\",IF(Výsledky_ŽENY9[[#This Row],[ĽP]]=\"n\",\"Neúčasť\",IF(Výsledky_ŽENY9[[#This Row],[PP]]=\"n\",\"Neúčasť\",MAX(SUBSTITUTE(Výsledky_ŽENY9[[#This Row],[ĽP]],\",\",\".\"),SUBSTITUTE(Výsledky_ŽENY9[[#This Row],[PP]],\",\",\".\")))))))","v":28.03},{"$f":"IF(Výsledky_ŽENY9[[#This Row],[Por.]]=1,10,IF(Výsledky_ŽENY9[[#This Row],[Por.]]=2,8,IF(Výsledky_ŽENY9[[#This Row],[Por.]]=3,6,IF(Výsledky_ŽENY9[[#This Row],[Por.]]=4,4,IF(Výsledky_ŽENY9[[#This Row],[Por.]]=5,2,IF(Výsledky_ŽENY9[[#This Row],[Výs. čas]]=99.99,1,IF(Výsledky_ŽENY9[[#This Row],[Výs. čas]]=\"Diskv.\",1,IF(Výsledky_ŽENY9[[#This Row],[Výs. čas]]=\"Neúčasť\",0,2))))))))","v":4},null,null,null,null,null,"--- pravý prúd (PP)"]
[{"$f":"IF(Výsledky_ŽENY9[[#This Row],[Výs. čas]]=\"čas\",\"---\",IF(Výsledky_ŽENY9[[#This Row],[Výs. čas]]=99.99,\"---\",IF(Výsledky_ŽENY9[[#This Row],[Výs. čas]]=\"Diskv.\",\"---\",IF(Výsledky_ŽENY9[[#This Row],[Výs. čas]]=\"Neúčasť\",\"---\",_xlfn.RANK.EQ(Výsledky_ŽENY9[[#This Row],[Výs. čas]],Výsledky_ŽENY9[Výs. čas],1)))))","v":5},"Kvašov","PU",32.33,35.950000000000003,{"$f":"IF(AND(ISBLANK(Výsledky_ŽENY9[[#This Row],[PP]])),\"čas\",IF(Výsledky_ŽENY9[[#This Row],[ĽP]]=\"D\",\"Diskv.\",IF(Výsledky_ŽENY9[[#This Row],[PP]]=\"D\",\"Diskv.\",IF(Výsledky_ŽENY9[[#This Row],[ĽP]]=\"n\",\"Neúčasť\",IF(Výsledky_ŽENY9[[#This Row],[PP]]=\"n\",\"Neúčasť\",MAX(SUBSTITUTE(Výsledky_ŽENY9[[#This Row],[ĽP]],\",\",\".\"),SUBSTITUTE(Výsledky_ŽENY9[[#This Row],[PP]],\",\",\".\")))))))","v":35.950000000000003},{"$f":"IF(Výsledky_ŽENY9[[#This Row],[Por.]]=1,10,IF(Výsledky_ŽENY9[[#This Row],[Por.]]=2,8,IF(Výsledky_ŽENY9[[#This Row],[Por.]]=3,6,IF(Výsledky_ŽENY9[[#This Row],[Por.]]=4,4,IF(Výsledky_ŽENY9[[#This Row],[Por.]]=5,2,IF(Výsledky_ŽENY9[[#This Row],[Výs. čas]]=99.99,1,IF(Výsledky_ŽENY9[[#This Row],[Výs. čas]]=\"Diskv.\",1,IF(Výsledky_ŽENY9[[#This Row],[Výs. čas]]=\"Neúčasť\",0,2))))))))","v":2},null,null,null,null,null,"--- prestup"]
[{"$f":"IF(Výsledky_ŽENY9[[#This Row],[Výs. čas]]=\"čas\",\"---\",IF(Výsledky_ŽENY9[[#This Row],[Výs. čas]]=99.99,\"---\",IF(Výsledky_ŽENY9[[#This Row],[Výs. čas]]=\"Diskv.\",\"---\",IF(Výsledky_ŽENY9[[#This Row],[Výs. čas]]=\"Neúčasť\",\"---\",_xlfn.RANK.EQ(Výsledky_ŽENY9[[#This Row],[Výs. čas]],Výsledky_ŽENY9[Výs. čas],1)))))","v":"---"},"Zlatníky","BN",99.99,99.99,{"$f":"IF(AND(ISBLANK(Výsledky_ŽENY9[[#This Row],[PP]])),\"čas\",IF(Výsledky_ŽENY9[[#This Row],[ĽP]]=\"D\",\"Diskv.\",IF(Výsledky_ŽENY9[[#This Row],[PP]]=\"D\",\"Diskv.\",IF(Výsledky_ŽENY9[[#This Row],[ĽP]]=\"n\",\"Neúčasť\",IF(Výsledky_ŽENY9[[#This Row],[PP]]=\"n\",\"Neúčasť\",MAX(SUBSTITUTE(Výsledky_ŽENY9[[#This Row],[ĽP]],\",\",\".\"),SUBSTITUTE(Výsledky_ŽENY9[[#This Row],[PP]],\",\",\".\")))))))","v":99.99},{"$f":"IF(Výsledky_ŽENY9[[#This Row],[Por.]]=1,10,IF(Výsledky_ŽENY9[[#This Row],[Por.]]=2,8,IF(Výsledky_ŽENY9[[#This Row],[Por.]]=3,6,IF(Výsledky_ŽENY9[[#This Row],[Por.]]=4,4,IF(Výsledky_ŽENY9[[#This Row],[Por.]]=5,2,IF(Výsledky_ŽENY9[[#This Row],[Výs. čas]]=99.99,1,IF(Výsledky_ŽENY9[[#This Row],[Výs. čas]]=\"Diskv.\",1,IF(Výsledky_ŽENY9[[#This Row],[Výs. čas]]=\"Neúčasť\",0,2))))))))","v":1}]
[null,null,null,null,null,null,"Prestupov:",{"$f":"COUNTIF(Výsledky_ŽENY9[Prestup],\"X\")","v":0},null,null,null,null,"Dovolený formát zadávaných údajov:"]
[null,null,null,null,null,null,null,null,null,null,null,null,"Družstvo, okres"]
[null,null,null,null,null,null,null,null,null,null,null,null,"--- ľubovoľný text"]
[null,null,null,null,null,null,null,null,null,null,null,null,"Ľavý/pravý prúd"]
[null,null,null,null,null,null,null,null,null,null,null,null,"14.00 --- dokončený pokus"]
[null,null,null,null,null,null,null,null,null,null,null,null,"99.99 --- nedokončený pokus"]
[null,null,null,null,null,null,null,null,null,null,null,null,"D        --- diskvalifikácia družstva"]
[null,null,null,null,null,null,null,null,null,null,null,null,"N        --- neúčasť družstva"]
[null,null,null,null,null,null,null,null,null,null,null,null,"Prestup"]
[null,null,null,null,null,null,null,null,null,null,null,null,"X        --- ak malo družstvo prestup"]
[]
[null,null,null,null,null,null,null,null,null,null,null,null,"TIP: Ak potrebujete do tabuľky pridať nový riadok, presuňte sa do stĺpca \"H\" posledného riadku a stačte klávesu TAB."]

{"sheet":"Výsledky DORASTENCI","index":4,"n_rows":22,"n_cols":13,"rows_kept":22,"cut":false,"hidden":false,"merged":[[0,0,0,7],[0,12,1,12],[1,0,1,7],[21,12,22,12]]}
[{"$f":"'Vstupné údaje'!$B$4","v":"O putovný pohár starostu obce Lednica (10. kolo SMHL 2024)"},null,null,null,null,null,null,null,null,null,null,null,"Návod na plnohodnotnú prácu s výsledkami"]
[{"$f":"CONCATENATE(\"Výsledky \",'Vstupné údaje'!$B$7,\". kola SMHL \",TEXT('Vstupné údaje'!$B$5,\"yyyy\"),\" v kategórii DORASTENCI, ktoré sa konalo \",TEXT('Vstupné údaje'!$B$5,\"dd.mm.yyyy\"),\" o \",TEXT('Vstupné údaje'!$B$6,\"hh:mm\"))","v":"Výsledky 10. kola SMHL 2024 v kategórii DORASTENCI, ktoré sa konalo 21.07.2024 o 14:00"}]
[]
["Por.","Družstvo","Okres","ĽP","PP","Výs. čas","Body","Prestup",null,null,null,null,"Pri zadávaní výsledkov sa vypĺňajú nasledujúce stĺpce (zvyšné sa vypočítajú automaticky):"]
[{"$f":"IF(Výsledky_ŽENY93[[#This Row],[Výs. čas]]=\"čas\",\"---\",IF(Výsledky_ŽENY93[[#This Row],[Výs. čas]]=99.99,\"---\",IF(Výsledky_ŽENY93[[#This Row],[Výs. čas]]=\"Diskv.\",\"---\",IF(Výsledky_ŽENY93[[#This Row],[Výs. čas]]=\"Neúčasť\",\"---\",_xlfn.RANK.EQ(Výsledky_ŽENY93[[#This Row],[Výs. čas]],Výsledky_ŽENY93[Výs. čas],1)))))","v":1},"Ďurďové","PB",15.92,15.12,{"$f":"IF(AND(ISBLANK(Výsledky_ŽENY93[[#This Row],[PP]])),\"čas\",IF(Výsledky_ŽENY93[[#This Row],[ĽP]]=\"D\",\"Diskv.\",IF(Výsledky_ŽENY93[[#This Row],[PP]]=\"D\",\"Diskv.\",IF(Výsledky_ŽENY93[[#This Row],[ĽP]]=\"n\",\"Neúčasť\",IF(Výsledky_ŽENY93[[#This Row],[PP]]=\"n\",\"Neúčasť\",MAX(SUBSTITUTE(Výsledky_ŽENY93[[#This Row],[ĽP]],\",\",\".\"),SUBSTITUTE(Výsledky_ŽENY93[[#This Row],[PP]],\",\",\".\")))))))","v":15.92},{"$f":"IF(Výsledky_ŽENY93[[#This Row],[Por.]]=1,10,IF(Výsledky_ŽENY93[[#This Row],[Por.]]=2,8,IF(Výsledky_ŽENY93[[#This Row],[Por.]]=3,6,IF(Výsledky_ŽENY93[[#This Row],[Por.]]=4,4,IF(Výsledky_ŽENY93[[#This Row],[Por.]]=5,2,IF(Výsledky_ŽENY93[[#This Row],[Výs. čas]]=99.99,1,IF(Výsledky_ŽENY93[[#This Row],[Výs. čas]]=\"Diskv.\",1,IF(Výsledky_ŽENY93[[#This Row],[Výs. čas]]=\"Neúčasť\",0,2))))))))","v":10},null,null,null,null,null,"--- družstvo"]
[{"$f":"IF(Výsledky_ŽENY93[[#This Row],[Výs. čas]]=\"čas\",\"---\",IF(Výsledky_ŽENY93[[#This Row],[Výs. čas]]=99.99,\"---\",IF(Výsledky_ŽENY93[[#This Row],[Výs. čas]]=\"Diskv.\",\"---\",IF(Výsledky_ŽENY93[[#This Row],[Výs. čas]]=\"Neúčasť\",\"---\",_xlfn.RANK.EQ(Výsledky_ŽENY93[[#This Row],[Výs. čas]],Výsledky_ŽENY93[Výs. čas],1)))))","v":2},"Lipová","ZL",16.55,15.39,{"$f":"IF(AND(ISBLANK(Výsledky_ŽENY93[[#This Row],[PP]])),\"čas\",IF(Výsledky_ŽENY93[[#This Row],[ĽP]]=\"D\",\"Diskv.\",IF(Výsledky_ŽENY93[[#This Row],[PP]]=\"D\",\"Diskv.\",IF(Výsledky_ŽENY93[[#This Row],[ĽP]]=\"n\",\"Neúčasť\",IF(Výsledky_ŽENY93[[#This Row],[PP]]=\"n\",\"Neúčasť\",MAX(SUBSTITUTE(Výsledky_ŽENY93[[#This Row],[ĽP]],\",\",\".\"),SUBSTITUTE(Výsledky_ŽENY93[[#This Row],[PP]],\",\",\".\")))))))","v":16.55},{"$f":"IF(Výsledky_ŽENY93[[#This Row],[Por.]]=1,10,IF(Výsledky_ŽENY93[[#This Row],[Por.]]=2,8,IF(Výsledky_ŽENY93[[#This Row],[Por.]]=3,6,IF(Výsledky_ŽENY93[[#This Row],[Por.]]=4,4,IF(Výsledky_ŽENY93[[#This Row],[Por.]]=5,2,IF(Výsledky_ŽENY93[[#This Row],[Výs. čas]]=99.99,1,IF(Výsledky_ŽENY93[[#This Row],[Výs. čas]]=\"Diskv.\",1,IF(Výsledky_ŽENY93[[#This Row],[Výs. čas]]=\"Neúčasť\",0,2))))))))","v":8},null,null,null,null,null,"--- okres"]
[{"$f":"IF(Výsledky_ŽENY93[[#This Row],[Výs. čas]]=\"čas\",\"---\",IF(Výsledky_ŽENY93[[#This Row],[Výs. čas]]=99.99,\"---\",IF(Výsledky_ŽENY93[[#This Row],[Výs. čas]]=\"Diskv.\",\"---\",IF(Výsledky_ŽENY93[[#This Row],[Výs. čas]]=\"Neúčasť\",\"---\",_xlfn.RANK.EQ(Výsledky_ŽENY93[[#This Row],[Výs. čas]],Výsledky_ŽENY93[Výs. čas],1)))))","v":3},"Horenická Hôrka","PU",18.09,16.88,{"$f":"IF(AND(ISBLANK(Výsledky_ŽENY93[[#This Row],[PP]])),\"čas\",IF(Výsledky_ŽENY93[[#This Row],[ĽP]]=\"D\",\"Diskv.\",IF(Výsledky_ŽENY93[[#This Row],[PP]]=\"D\",\"Diskv.\",IF(Výsledky_ŽENY93[[#This Row],[ĽP]]=\"n\",\"Neúčasť\",IF(Výsledky_ŽENY93[[#This Row],[PP]]=\"n\",\"Neúčasť\",MAX(SUBSTITUTE(Výsledky_ŽENY93[[#This Row],[ĽP]],\",\",\".\"),SUBSTITUTE(Výsledky_ŽENY93[[#This Row],[PP]],\",\",\".\")))))))","v":18.09},{"$f":"IF(Výsledky_ŽENY93[[#This Row],[Por.]]=1,10,IF(Výsledky_ŽENY93[[#This Row],[Por.]]=2,8,IF(Výsledky_ŽENY93[[#This Row],[Por.]]=3,6,IF(Výsledky_ŽENY93[[#This Row],[Por.]]=4,4,IF(Výsledky_ŽENY93[[#This Row],[Por.]]=5,2,IF(Výsledky_ŽENY93[[#This Row],[Výs. čas]]=99.99,1,IF(Výsledky_ŽENY93[[#This Row],[Výs. čas]]=\"Diskv.\",1,IF(Výsledky_ŽENY93[[#This Row],[Výs. čas]]=\"Neúčasť\",0,2))))))))","v":6},null,null,null,null,null,"--- ľavý prúd (ĽP)"]
[{"$f":"IF(Výsledky_ŽENY93[[#This Row],[Výs. čas]]=\"čas\",\"---\",IF(Výsledky_ŽENY93[[#This Row],[Výs. čas]]=99.99,\"---\",IF(Výsledky_ŽENY93[[#This Row],[Výs. čas]]=\"Diskv.\",\"---\",IF(Výsledky_ŽENY93[[#This Row],[Výs. čas]]=\"Neúčasť\",\"---\",_xlfn.RANK.EQ(Výsledky_ŽENY93[[#This Row],[Výs. čas]],Výsledky_ŽENY93[Výs. čas],1)))))","v":4},"Horná Ves","PD",18.21,17.82,{"$f":"IF(AND(ISBLANK(Výsledky_ŽENY93[[#This Row],[PP]])),\"čas\",IF(Výsledky_ŽENY93[[#This Row],[ĽP]]=\"D\",\"Diskv.\",IF(Výsledky_ŽENY93[[#This Row],[PP]]=\"D\",\"Diskv.\",IF(Výsledky_ŽENY93[[#This Row],[ĽP]]=\"n\",\"Neúčasť\",IF(Výsledky_ŽENY93[[#This Row],[PP]]=\"n\",\"Neúčasť\",MAX(SUBSTITUTE(Výsledky_ŽENY93[[#This Row],[ĽP]],\",\",\".\"),SUBSTITUTE(Výsledky_ŽENY93[[#This Row],[PP]],\",\",\".\")))))))","v":18.21},{"$f":"IF(Výsledky_ŽENY93[[#This Row],[Por.]]=1,10,IF(Výsledky_ŽENY93[[#This Row],[Por.]]=2,8,IF(Výsledky_ŽENY93[[#This Row],[Por.]]=3,6,IF(Výsledky_ŽENY93[[#This Row],[Por.]]=4,4,IF(Výsledky_ŽENY93[[#This Row],[Por.]]=5,2,IF(Výsledky_ŽENY93[[#This Row],[Výs. čas]]=99.99,1,IF(Výsledky_ŽENY93[[#This Row],[Výs. čas]]=\"Diskv.\",1,IF(Výsledky_ŽENY93[[#This Row],[Výs. čas]]=\"Neúčasť\",0,2))))))))","v":4},null,null,null,null,null,"--- pravý prúd (PP)"]
[{"$f":"IF(Výsledky_ŽENY93[[#This Row],[Výs. čas]]=\"čas\",\"---\",IF(Výsledky_ŽENY93[[#This Row],[Výs. čas]]=99.99,\"---\",IF(Výsledky_ŽENY93[[#This Row],[Výs. čas]]=\"Diskv.\",\"---\",IF(Výsledky_ŽENY93[[#This Row],[Výs. čas]]=\"Neúčasť\",\"---\",_xlfn.RANK.EQ(Výsledky_ŽENY93[[#This Row],[Výs. čas]],Výsledky_ŽENY93[Výs. čas],1)))))","v":5},"Pruske","IL",19.88,16.600000000000001,{"$f":"IF(AND(ISBLANK(Výsledky_ŽENY93[[#This Row],[PP]])),\"čas\",IF(Výsledky_ŽENY93[[#This Row],[ĽP]]=\"D\",\"Diskv.\",IF(Výsledky_ŽENY93[[#This Row],[PP]]=\"D\",\"Diskv.\",IF(Výsledky_ŽENY93[[#This Row],[ĽP]]=\"n\",\"Neúčasť\",IF(Výsledky_ŽENY93[[#This Row],[PP]]=\"n\",\"Neúčasť\",MAX(SUBSTITUTE(Výsledky_ŽENY93[[#This Row],[ĽP]],\",\",\".\"),SUBSTITUTE(Výsledky_ŽENY93[[#This Row],[PP]],\",\",\".\")))))))","v":19.88},{"$f":"IF(Výsledky_ŽENY93[[#This Row],[Por.]]=1,10,IF(Výsledky_ŽENY93[[#This Row],[Por.]]=2,8,IF(Výsledky_ŽENY93[[#This Row],[Por.]]=3,6,IF(Výsledky_ŽENY93[[#This Row],[Por.]]=4,4,IF(Výsledky_ŽENY93[[#This Row],[Por.]]=5,2,IF(Výsledky_ŽENY93[[#This Row],[Výs. čas]]=99.99,1,IF(Výsledky_ŽENY93[[#This Row],[Výs. čas]]=\"Diskv.\",1,IF(Výsledky_ŽENY93[[#This Row],[Výs. čas]]=\"Neúčasť\",0,2))))))))","v":2},null,null,null,null,null,"--- prestup"]
[{"$f":"IF(Výsledky_ŽENY93[[#This Row],[Výs. čas]]=\"čas\",\"---\",IF(Výsledky_ŽENY93[[#This Row],[Výs. čas]]=99.99,\"---\",IF(Výsledky_ŽENY93[[#This Row],[Výs. čas]]=\"Diskv.\",\"---\",IF(Výsledky_ŽENY93[[#This Row],[Výs. čas]]=\"Neúčasť\",\"---\",_xlfn.RANK.EQ(Výsledky_ŽENY93[[#This Row],[Výs. čas]],Výsledky_ŽENY93[Výs. čas],1)))))","v":6},"Nosice","PU",24.35,23.9,{"$f":"IF(AND(ISBLANK(Výsledky_ŽENY93[[#This Row],[PP]])),\"čas\",IF(Výsledky_ŽENY93[[#This Row],[ĽP]]=\"D\",\"Diskv.\",IF(Výsledky_ŽENY93[[#This Row],[PP]]=\"D\",\"Diskv.\",IF(Výsledky_ŽENY93[[#This Row],[ĽP]]=\"n\",\"Neúčasť\",IF(Výsledky_ŽENY93[[#This Row],[PP]]=\"n\",\"Neúčasť\",MAX(SUBSTITUTE(Výsledky_ŽENY93[[#This Row],[ĽP]],\",\",\".\"),SUBSTITUTE(Výsledky_ŽENY93[[#This Row],[PP]],\",\",\".\")))))))","v":24.35},{"$f":"IF(Výsledky_ŽENY93[[#This Row],[Por.]]=1,10,IF(Výsledky_ŽENY93[[#This Row],[Por.]]=2,8,IF(Výsledky_ŽENY93[[#This Row],[Por.]]=3,6,IF(Výsledky_ŽENY93[[#This Row],[Por.]]=4,4,IF(Výsledky_ŽENY93[[#This Row],[Por.]]=5,2,IF(Výsledky_ŽENY93[[#This Row],[Výs. čas]]=99.99,1,IF(Výsledky_ŽENY93[[#This Row],[Výs. čas]]=\"Diskv.\",1,IF(Výsledky_ŽENY93[[#This Row],[Výs. čas]]=\"Neúčasť\",0,2))))))))","v":2}]
[{"$f":"IF(Výsledky_ŽENY93[[#This Row],[Výs. čas]]=\"čas\",\"---\",IF(Výsledky_ŽENY93[[#This Row],[Výs. čas]]=99.99,\"---\",IF(Výsledky_ŽENY93[[#This Row],[Výs. čas]]=\"Diskv.\",\"---\",IF(Výsledky_ŽENY93[[#This Row],[Výs. čas]]=\"Neúčasť\",\"---\",_xlfn.RANK.EQ(Výsledky_ŽENY93[[#This Row],[Výs. čas]],Výsledky_ŽENY93[Výs. čas],1)))))","v":7},"Iliavka","IL",28.38,27.32,{"$f":"IF(AND(ISBLANK(Výsledky_ŽENY93[[#This Row],[PP]])),\"čas\",IF(Výsledky_ŽENY93[[#This Row],[ĽP]]=\"D\",\"Diskv.\",IF(Výsledky_ŽENY93[[#This Row],[PP]]=\"D\",\"Diskv.\",IF(Výsledky_ŽENY93[[#This Row],[ĽP]]=\"n\",\"Neúčasť\",IF(Výsledky_ŽENY93[[#This Row],[PP]]=\"n\",\"Neúčasť\",MAX(SUBSTITUTE(Výsledky_ŽENY93[[#This Row],[ĽP]],\",\",\".\"),SUBSTITUTE(Výsledky_ŽENY93[[#This Row],[PP]],\",\",\".\")))))))","v":28.38},{"$f":"IF(Výsledky_ŽENY93[[#This Row],[Por.]]=1,10,IF(Výsledky_ŽENY93[[#This Row],[Por.]]=2,8,IF(Výsledky_ŽENY93[[#This Row],[Por.]]=3,6,IF(Výsledky_ŽENY93[[#This Row],[Por.]]=4,4,IF(Výsledky_ŽENY93[[#This Row],[Por.]]=5,2,IF(Výsledky_ŽENY93[[#This Row],[Výs. čas]]=99.99,1,IF(Výsledky_ŽENY93[[#This Row],[Výs. čas]]=\"Diskv.\",1,IF(Výsledky_ŽENY93[[#This Row],[Výs. čas]]=\"Neúčasť\",0,2))))))))","v":2},null,null,null,null,null,"Dovolený formát zadávaných údajov:"]
[{"$f":"IF(Výsledky_ŽENY93[[#This Row],[Výs. čas]]=\"čas\",\"---\",IF(Výsledky_ŽENY93[[#This Row],[Výs. čas]]=99.99,\"---\",IF(Výsledky_ŽENY93[[#This Row],[Výs. čas]]=\"Diskv.\",\"---\",IF(Výsledky_ŽENY93[[#This Row],[Výs. čas]]=\"Neúčasť\",\"---\",_xlfn.RANK.EQ(Výsledky_ŽENY93[[#This Row],[Výs. čas]],Výsledky_ŽENY93[Výs. čas],1)))))","v":"---"},"Zlatníky","BN",99.99,99.99,{"$f":"IF(AND(ISBLANK(Výsledky_ŽENY93[[#This Row],[PP]])),\"čas\",IF(Výsledky_ŽENY93[[#This Row],[ĽP]]=\"D\",\"Diskv.\",IF(Výsledky_ŽENY93[[#This Row],[PP]]=\"D\",\"Diskv.\",IF(Výsledky_ŽENY93[[#This Row],[ĽP]]=\"n\",\"Neúčasť\",IF(Výsledky_ŽENY93[[#This Row],[PP]]=\"n\",\"Neúčasť\",MAX(SUBSTITUTE(Výsledky_ŽENY93[[#This Row],[ĽP]],\",\",\".\"),SUBSTITUTE(Výsledky_ŽENY93[[#This Row],[PP]],\",\",\".\")))))))","v":99.99},{"$f":"IF(Výsledky_ŽENY93[[#This Row],[Por.]]=1,10,IF(Výsledky_ŽENY93[[#This Row],[Por.]]=2,8,IF(Výsledky_ŽENY93[[#This Row],[Por.]]=3,6,IF(Výsledky_ŽENY93[[#This Row],[Por.]]=4,4,IF(Výsledky_ŽENY93[[#This Row],[Por.]]=5,2,IF(Výsledky_ŽENY93[[#This Row],[Výs. čas]]=99.99,1,IF(Výsledky_ŽENY93[[#This Row],[Výs. čas]]=\"Diskv.\",1,IF(Výsledky_ŽENY93[[#This Row],[Výs. čas]]=\"Neúčasť\",0,2))))))))","v":1},null,null,null,null,null,"Družstvo, okres"]
[{"$f":"IF(Výsledky_ŽENY93[[#This Row],[Výs. čas]]=\"čas\",\"---\",IF(Výsledky_ŽENY93[[#This Row],[Výs. čas]]=99.99,\"---\",IF(Výsledky_ŽENY93[[#This Row],[Výs. čas]]=\"Diskv.\",\"---\",IF(Výsledky_ŽENY93[[#This Row],[Výs. čas]]=\"Neúčasť\",\"---\",_xlfn.RANK.EQ(Výsledky_ŽENY93[[#This Row],[Výs. čas]],Výsledky_ŽENY93[Výs. čas],1)))))","v":"---"},"Oškerda","KM",99.99,99.99,{"$f":"IF(AND(ISBLANK(Výsledky_ŽENY93[[#This Row],[PP]])),\"čas\",IF(Výsledky_ŽENY93[[#This Row],[ĽP]]=\"D\",\"Diskv.\",IF(Výsledky_ŽENY93[[#This Row],[PP]]=\"D\",\"Diskv.\",IF(Výsledky_ŽENY93[[#This Row],[ĽP]]=\"n\",\"Neúčasť\",IF(Výsledky_ŽENY93[[#This Row],[PP]]=\"n\",\"Neúčasť\",MAX(SUBSTITUTE(Výsledky_ŽENY93[[#This Row],[ĽP]],\",\",\".\"),SUBSTITUTE(Výsledky_ŽENY93[[#This Row],[PP]],\",\",\".\")))))))","v":99.99},{"$f":"IF(Výsledky_ŽENY93[[#This Row],[Por.]]=1,10,IF(Výsledky_ŽENY93[[#This Row],[Por.]]=2,8,IF(Výsledky_ŽENY93[[#This Row],[Por.]]=3,6,IF(Výsledky_ŽENY93[[#This Row],[Por.]]=4,4,IF(Výsledky_ŽENY93[[#This Row],[Por.]]=5,2,IF(Výsledky_ŽENY93[[#This Row],[Výs. čas]]=99.99,1,IF(Výsledky_ŽENY93[[#This Row],[Výs. čas]]=\"Diskv.\",1,IF(Výsledky_ŽENY93[[#This Row],[Výs. čas]]=\"Neúčasť\",0,2))))))))","v":1},null,null,null,null,null,"--- ľubovoľný text"]
[null,null,null,null,null,null,"Prestupov:",{"$f":"COUNTIF(Výsledky_ŽENY93[Prestup],\"X\")","v":0},null,null,null,null,"Ľavý/pravý prúd"]
[null,null,null,null,null,null,null,null,null,null,null,null,"14.00 --- dokončený pokus"]
[null,null,null,null,null,null,null,null,null,null,null,null,"99.99 --- nedokončený pokus"]
[null,null,null,null,null,null,null,null,null,null,null,null,"D        --- diskvalifikácia družstva"]
[null,null,null,null,null,null,null,null,null,null,null,null,"N        --- neúčasť družstva"]
[null,null,null,null,null,null,null,null,null,null,null,null,"Prestup"]
[null,null,null,null,null,null,null,null,null,null,null,null,"X        --- ak malo družstvo prestup"]
[]
[null,null,null,null,null,null,null,null,null,null,null,null,"TIP: Ak potrebujete do tabuľky pridať nový riadok, presuňte sa do stĺpca \"H\" posledného riadku a stačte klávesu TAB."]

{"sheet":"Výsledky DORASTENKY","index":5,"n_rows":22,"n_cols":13,"rows_kept":22,"cut":false,"hidden":false,"merged":[[0,0,0,7],[0,12,1,12],[1,0,1,7],[21,12,22,12]]}
[{"$f":"'Vstupné údaje'!$B$4","v":"O putovný pohár starostu obce Lednica (10. kolo SMHL 2024)"},null,null,null,null,null,null,null,null,null,null,null,"Návod na plnohodnotnú prácu s výsledkami"]
[{"$f":"CONCATENATE(\"Výsledky \",'Vstupné údaje'!$B$7,\". kola SMHL \",TEXT('Vstupné údaje'!$B$5,\"yyyy\"),\" v kategórii DORASTENKY, ktoré sa konalo \",TEXT('Vstupné údaje'!$B$5,\"dd.mm.yyyy\"),\" o \",TEXT('Vstupné údaje'!$B$6,\"hh:mm\"))","v":"Výsledky 10. kola SMHL 2024 v kategórii DORASTENKY, ktoré sa konalo 21.07.2024 o 14:00"}]
[]
["Por.","Družstvo","Okres","ĽP","PP","Výs. čas","Body","Prestup",null,null,null,null,"Pri zadávaní výsledkov sa vypĺňajú nasledujúce stĺpce (zvyšné sa vypočítajú automaticky):"]
[{"$f":"IF(Výsledky_ŽENY9315[[#This Row],[Výs. čas]]=\"čas\",\"---\",IF(Výsledky_ŽENY9315[[#This Row],[Výs. čas]]=99.99,\"---\",IF(Výsledky_ŽENY9315[[#This Row],[Výs. čas]]=\"Diskv.\",\"---\",IF(Výsledky_ŽENY9315[[#This Row],[Výs. čas]]=\"Neúčasť\",\"---\",_xlfn.RANK.EQ(Výsledky_ŽENY9315[[#This Row],[Výs. čas]],Výsledky_ŽENY9315[Výs. čas],1)))))","v":1},"Dulov","IL",19.23,19.670000000000002,{"$f":"IF(AND(ISBLANK(Výsledky_ŽENY9315[[#This Row],[PP]])),\"čas\",IF(Výsledky_ŽENY9315[[#This Row],[ĽP]]=\"D\",\"Diskv.\",IF(Výsledky_ŽENY9315[[#This Row],[PP]]=\"D\",\"Diskv.\",IF(Výsledky_ŽENY9315[[#This Row],[ĽP]]=\"n\",\"Neúčasť\",IF(Výsledky_ŽENY9315[[#This Row],[PP]]=\"n\",\"Neúčasť\",MAX(SUBSTITUTE(Výsledky_ŽENY9315[[#This Row],[ĽP]],\",\",\".\"),SUBSTITUTE(Výsledky_ŽENY9315[[#This Row],[PP]],\",\",\".\")))))))","v":19.670000000000002},{"$f":"IF(Výsledky_ŽENY9315[[#This Row],[Por.]]=1,10,IF(Výsledky_ŽENY9315[[#This Row],[Por.]]=2,8,IF(Výsledky_ŽENY9315[[#This Row],[Por.]]=3,6,IF(Výsledky_ŽENY9315[[#This Row],[Por.]]=4,4,IF(Výsledky_ŽENY9315[[#This Row],[Por.]]=5,2,IF(Výsledky_ŽENY9315[[#This Row],[Výs. čas]]=99.99,1,IF(Výsledky_ŽENY9315[[#This Row],[Výs. čas]]=\"Diskv.\",1,IF(Výsledky_ŽENY9315[[#This Row],[Výs. čas]]=\"Neúčasť\",0,2))))))))","v":10},null,null,null,null,null,"--- družstvo"]
[{"$f":"IF(Výsledky_ŽENY9315[[#This Row],[Výs. čas]]=\"čas\",\"---\",IF(Výsledky_ŽENY9315[[#This Row],[Výs. čas]]=99.99,\"---\",IF(Výsledky_ŽENY9315[[#This Row],[Výs. čas]]=\"Diskv.\",\"---\",IF(Výsledky_ŽENY9315[[#This Row],[Výs. čas]]=\"Neúčasť\",\"---\",_xlfn.RANK.EQ(Výsledky_ŽENY9315[[#This Row],[Výs. čas]],Výsledky_ŽENY9315[Výs. čas],1)))))","v":2},"Nedašov","ZL",20.39,20.329999999999998,{"$f":"IF(AND(ISBLANK(Výsledky_ŽENY9315[[#This Row],[PP]])),\"čas\",IF(Výsledky_ŽENY9315[[#This Row],[ĽP]]=\"D\",\"Diskv.\",IF(Výsledky_ŽENY9315[[#This Row],[PP]]=\"D\",\"Diskv.\",IF(Výsledky_ŽENY9315[[#This Row],[ĽP]]=\"n\",\"Neúčasť\",IF(Výsledky_ŽENY9315[[#This Row],[PP]]=\"n\",\"Neúčasť\",MAX(SUBSTITUTE(Výsledky_ŽENY9315[[#This Row],[ĽP]],\",\",\".\"),SUBSTITUTE(Výsledky_ŽENY9315[[#This Row],[PP]],\",\",\".\")))))))","v":20.39},{"$f":"IF(Výsledky_ŽENY9315[[#This Row],[Por.]]=1,10,IF(Výsledky_ŽENY9315[[#This Row],[Por.]]=2,8,IF(Výsledky_ŽENY9315[[#This Row],[Por.]]=3,6,IF(Výsledky_ŽENY9315[[#This Row],[Por.]]=4,4,IF(Výsledky_ŽENY9315[[#This Row],[Por.]]=5,2,IF(Výsledky_ŽENY9315[[#This Row],[Výs. čas]]=99.99,1,IF(Výsledky_ŽENY9315[[#This Row],[Výs. čas]]=\"Diskv.\",1,IF(Výsledky_ŽENY9315[[#This Row],[Výs. čas]]=\"Neúčasť\",0,2))))))))","v":8},null,null,null,null,null,"--- okres"]
[{"$f":"IF(Výsledky_ŽENY9315[[#This Row],[Výs. čas]]=\"čas\",\"---\",IF(Výsledky_ŽENY9315[[#This Row],[Výs. čas]]=99.99,\"---\",IF(Výsledky_ŽENY9315[[#This Row],[Výs. čas]]=\"Diskv.\",\"---\",IF(Výsledky_ŽENY9315[[#This Row],[Výs. čas]]=\"Neúčasť\",\"---\",_xlfn.RANK.EQ(Výsledky_ŽENY9315[[#This Row],[Výs. čas]],Výsledky_ŽENY9315[Výs. čas],1)))))","v":3},"Mikušovce","IL",21.11,20.36,{"$f":"IF(AND(ISBLANK(Výsledky_ŽENY9315[[#This Row],[PP]])),\"čas\",IF(Výsledky_ŽENY9315[[#This Row],[ĽP]]=\"D\",\"Diskv.\",IF(Výsledky_ŽENY9315[[#This Row],[PP]]=\"D\",\"Diskv.\",IF(Výsledky_ŽENY9315[[#This Row],[ĽP]]=\"n\",\"Neúčasť\",IF(Výsledky_ŽENY9315[[#This Row],[PP]]=\"n\",\"Neúčasť\",MAX(SUBSTITUTE(Výsledky_ŽENY9315[[#This Row],[ĽP]],\",\",\".\"),SUBSTITUTE(Výsledky_ŽENY9315[[#This Row],[PP]],\",\",\".\")))))))","v":21.11},{"$f":"IF(Výsledky_ŽENY9315[[#This Row],[Por.]]=1,10,IF(Výsledky_ŽENY9315[[#This Row],[Por.]]=2,8,IF(Výsledky_ŽENY9315[[#This Row],[Por.]]=3,6,IF(Výsledky_ŽENY9315[[#This Row],[Por.]]=4,4,IF(Výsledky_ŽENY9315[[#This Row],[Por.]]=5,2,IF(Výsledky_ŽENY9315[[#This Row],[Výs. čas]]=99.99,1,IF(Výsledky_ŽENY9315[[#This Row],[Výs. čas]]=\"Diskv.\",1,IF(Výsledky_ŽENY9315[[#This Row],[Výs. čas]]=\"Neúčasť\",0,2))))))))","v":6},null,null,null,null,null,"--- ľavý prúd (ĽP)"]
[{"$f":"IF(Výsledky_ŽENY9315[[#This Row],[Výs. čas]]=\"čas\",\"---\",IF(Výsledky_ŽENY9315[[#This Row],[Výs. čas]]=99.99,\"---\",IF(Výsledky_ŽENY9315[[#This Row],[Výs. čas]]=\"Diskv.\",\"---\",IF(Výsledky_ŽENY9315[[#This Row],[Výs. čas]]=\"Neúčasť\",\"---\",_xlfn.RANK.EQ(Výsledky_ŽENY9315[[#This Row],[Výs. čas]],Výsledky_ŽENY9315[Výs. čas],1)))))","v":4},"Pruské","IL",20.39,22.89,{"$f":"IF(AND(ISBLANK(Výsledky_ŽENY9315[[#This Row],[PP]])),\"čas\",IF(Výsledky_ŽENY9315[[#This Row],[ĽP]]=\"D\",\"Diskv.\",IF(Výsledky_ŽENY9315[[#This Row],[PP]]=\"D\",\"Diskv.\",IF(Výsledky_ŽENY9315[[#This Row],[ĽP]]=\"n\",\"Neúčasť\",IF(Výsledky_ŽENY9315[[#This Row],[PP]]=\"n\",\"Neúčasť\",MAX(SUBSTITUTE(Výsledky_ŽENY9315[[#This Row],[ĽP]],\",\",\".\"),SUBSTITUTE(Výsledky_ŽENY9315[[#This Row],[PP]],\",\",\".\")))))))","v":22.89},{"$f":"IF(Výsledky_ŽENY9315[[#This Row],[Por.]]=1,10,IF(Výsledky_ŽENY9315[[#This Row],[Por.]]=2,8,IF(Výsledky_ŽENY9315[[#This Row],[Por.]]=3,6,IF(Výsledky_ŽENY9315[[#This Row],[Por.]]=4,4,IF(Výsledky_ŽENY9315[[#This Row],[Por.]]=5,2,IF(Výsledky_ŽENY9315[[#This Row],[Výs. čas]]=99.99,1,IF(Výsledky_ŽENY9315[[#This Row],[Výs. čas]]=\"Diskv.\",1,IF(Výsledky_ŽENY9315[[#This Row],[Výs. čas]]=\"Neúčasť\",0,2))))))))","v":4},null,null,null,null,null,"--- pravý prúd (PP)"]
[{"$f":"IF(Výsledky_ŽENY9315[[#This Row],[Výs. čas]]=\"čas\",\"---\",IF(Výsledky_ŽENY9315[[#This Row],[Výs. čas]]=99.99,\"---\",IF(Výsledky_ŽENY9315[[#This Row],[Výs. čas]]=\"Diskv.\",\"---\",IF(Výsledky_ŽENY9315[[#This Row],[Výs. čas]]=\"Neúčasť\",\"---\",_xlfn.RANK.EQ(Výsledky_ŽENY9315[[#This Row],[Výs. čas]],Výsledky_ŽENY9315[Výs. čas],1)))))","v":5},"Horenická Hôrka","PU",23.03,21.67,{"$f":"IF(AND(ISBLANK(Výsledky_ŽENY9315[[#This Row],[PP]])),\"čas\",IF(Výsledky_ŽENY9315[[#This Row],[ĽP]]=\"D\",\"Diskv.\",IF(Výsledky_ŽENY9315[[#This Row],[PP]]=\"D\",\"Diskv.\",IF(Výsledky_ŽENY9315[[#This Row],[ĽP]]=\"n\",\"Neúčasť\",IF(Výsledky_ŽENY9315[[#This Row],[PP]]=\"n\",\"Neúčasť\",MAX(SUBSTITUTE(Výsledky_ŽENY9315[[#This Row],[ĽP]],\",\",\".\"),SUBSTITUTE(Výsledky_ŽENY9315[[#This Row],[PP]],\",\",\".\")))))))","v":23.03},{"$f":"IF(Výsledky_ŽENY9315[[#This Row],[Por.]]=1,10,IF(Výsledky_ŽENY9315[[#This Row],[Por.]]=2,8,IF(Výsledky_ŽENY9315[[#This Row],[Por.]]=3,6,IF(Výsledky_ŽENY9315[[#This Row],[Por.]]=4,4,IF(Výsledky_ŽENY9315[[#This Row],[Por.]]=5,2,IF(Výsledky_ŽENY9315[[#This Row],[Výs. čas]]=99.99,1,IF(Výsledky_ŽENY9315[[#This Row],[Výs. čas]]=\"Diskv.\",1,IF(Výsledky_ŽENY9315[[#This Row],[Výs. čas]]=\"Neúčasť\",0,2))))))))","v":2},null,null,null,null,null,"--- prestup"]
[{"$f":"IF(Výsledky_ŽENY9315[[#This Row],[Výs. čas]]=\"čas\",\"---\",IF(Výsledky_ŽENY9315[[#This Row],[Výs. čas]]=99.99,\"---\",IF(Výsledky_ŽENY9315[[#This Row],[Výs. čas]]=\"Diskv.\",\"---\",IF(Výsledky_ŽENY9315[[#This Row],[Výs. čas]]=\"Neúčasť\",\"---\",_xlfn.RANK.EQ(Výsledky_ŽENY9315[[#This Row],[Výs. čas]],Výsledky_ŽENY9315[Výs. čas],1)))))","v":6},"Rybany","BN",19.04,24.03,{"$f":"IF(AND(ISBLANK(Výsledky_ŽENY9315[[#This Row],[PP]])),\"čas\",IF(Výsledky_ŽENY9315[[#This Row],[ĽP]]=\"D\",\"Diskv.\",IF(Výsledky_ŽENY9315[[#This Row],[PP]]=\"D\",\"Diskv.\",IF(Výsledky_ŽENY9315[[#This Row],[ĽP]]=\"n\",\"Neúčasť\",IF(Výsledky_ŽENY9315[[#This Row],[PP]]=\"n\",\"Neúčasť\",MAX(SUBSTITUTE(Výsledky_ŽENY9315[[#This Row],[ĽP]],\",\",\".\"),SUBSTITUTE(Výsledky_ŽENY9315[[#This Row],[PP]],\",\",\".\")))))))","v":24.03},{"$f":"IF(Výsledky_ŽENY9315[[#This Row],[Por.]]=1,10,IF(Výsledky_ŽENY9315[[#This Row],[Por.]]=2,8,IF(Výsledky_ŽENY9315[[#This Row],[Por.]]=3,6,IF(Výsledky_ŽENY9315[[#This Row],[Por.]]=4,4,IF(Výsledky_ŽENY9315[[#This Row],[Por.]]=5,2,IF(Výsledky_ŽENY9315[[#This Row],[Výs. čas]]=99.99,1,IF(Výsledky_ŽENY9315[[#This Row],[Výs. čas]]=\"Diskv.\",1,IF(Výsledky_ŽENY9315[[#This Row],[Výs. čas]]=\"Neúčasť\",0,2))))))))","v":2}]
[{"$f":"IF(Výsledky_ŽENY9315[[#This Row],[Výs. čas]]=\"čas\",\"---\",IF(Výsledky_ŽENY9315[[#This Row],[Výs. čas]]=99.99,\"---\",IF(Výsledky_ŽENY9315[[#This Row],[Výs. čas]]=\"Diskv.\",\"---\",IF(Výsledky_ŽENY9315[[#This Row],[Výs. čas]]=\"Neúčasť\",\"---\",_xlfn.RANK.EQ(Výsledky_ŽENY9315[[#This Row],[Výs. čas]],Výsledky_ŽENY9315[Výs. čas],1)))))","v":"---"},"Nosice","PU",99.99,99.99,{"$f":"IF(AND(ISBLANK(Výsledky_ŽENY9315[[#This Row],[PP]])),\"čas\",IF(Výsledky_ŽENY9315[[#This Row],[ĽP]]=\"D\",\"Diskv.\",IF(Výsledky_ŽENY9315[[#This Row],[PP]]=\"D\",\"Diskv.\",IF(Výsledky_ŽENY9315[[#This Row],[ĽP]]=\"n\",\"Neúčasť\",IF(Výsledky_ŽENY9315[[#This Row],[PP]]=\"n\",\"Neúčasť\",MAX(SUBSTITUTE(Výsledky_ŽENY9315[[#This Row],[ĽP]],\",\",\".\"),SUBSTITUTE(Výsledky_ŽENY9315[[#This Row],[PP]],\",\",\".\")))))))","v":99.99},{"$f":"IF(Výsledky_ŽENY9315[[#This Row],[Por.]]=1,10,IF(Výsledky_ŽENY9315[[#This Row],[Por.]]=2,8,IF(Výsledky_ŽENY9315[[#This Row],[Por.]]=3,6,IF(Výsledky_ŽENY9315[[#This Row],[Por.]]=4,4,IF(Výsledky_ŽENY9315[[#This Row],[Por.]]=5,2,IF(Výsledky_ŽENY9315[[#This Row],[Výs. čas]]=99.99,1,IF(Výsledky_ŽENY9315[[#This Row],[Výs. čas]]=\"Diskv.\",1,IF(Výsledky_ŽENY9315[[#This Row],[Výs. čas]]=\"Neúčasť\",0,2))))))))","v":1},null,null,null,null,null,"Dovolený formát zadávaných údajov:"]
[{"$f":"IF(Výsledky_ŽENY9315[[#This Row],[Výs. čas]]=\"čas\",\"---\",IF(Výsledky_ŽENY9315[[#This Row],[Výs. čas]]=99.99,\"---\",IF(Výsledky_ŽENY9315[[#This Row],[Výs. čas]]=\"Diskv.\",\"---\",IF(Výsledky_ŽENY9315[[#This Row],[Výs. čas]]=\"Neúčasť\",\"---\",_xlfn.RANK.EQ(Výsledky_ŽENY9315[[#This Row],[Výs. čas]],Výsledky_ŽENY9315[Výs. čas],1)))))","v":"---"},"Veľké Uherce","PD",99.99,99.99,{"$f":"IF(AND(ISBLANK(Výsledky_ŽENY9315[[#This Row],[PP]])),\"čas\",IF(Výsledky_ŽENY9315[[#This Row],[ĽP]]=\"D\",\"Diskv.\",IF(Výsledky_ŽENY9315[[#This Row],[PP]]=\"D\",\"Diskv.\",IF(Výsledky_ŽENY9315[[#This Row],[ĽP]]=\"n\",\"Neúčasť\",IF(Výsledky_ŽENY9315[[#This Row],[PP]]=\"n\",\"Neúčasť\",MAX(SUBSTITUTE(Výsledky_ŽENY9315[[#This Row],[ĽP]],\",\",\".\"),SUBSTITUTE(Výsledky_ŽENY9315[[#This Row],[PP]],\",\",\".\")))))))","v":99.99},{"$f":"IF(Výsledky_ŽENY9315[[#This Row],[Por.]]=1,10,IF(Výsledky_ŽENY9315[[#This Row],[Por.]]=2,8,IF(Výsledky_ŽENY9315[[#This Row],[Por.]]=3,6,IF(Výsledky_ŽENY9315[[#This Row],[Por.]]=4,4,IF(Výsledky_ŽENY9315[[#This Row],[Por.]]=5,2,IF(Výsledky_ŽENY9315[[#This Row],[Výs. čas]]=99.99,1,IF(Výsledky_ŽENY9315[[#This Row],[Výs. čas]]=\"Diskv.\",1,IF(Výsledky_ŽENY9315[[#This Row],[Výs. čas]]=\"Neúčasť\",0,2))))))))","v":1},null,null,null,null,null,"Družstvo, okres"]
[null,null,null,null,null,null,"Prestupov:",{"$f":"COUNTIF(Výsledky_ŽENY9315[Prestup],\"X\")","v":0},null,null,null,null,"--- ľubovoľný text"]
[null,null,null,null,null,null,null,null,null,null,null,null,"Ľavý/pravý prúd"]
[null,null,null,null,null,null,null,null,null,null,null,null,"14.00 --- dokončený pokus"]
[null,null,null,null,null,null,null,null,null,null,null,null,"99.99 --- nedokončený pokus"]
[null,null,null,null,null,null,null,null,null,null,null,null,"D        --- diskvalifikácia družstva"]
[null,null,null,null,null,null,null,null,null,null,null,null,"N        --- neúčasť družstva"]
[null,null,null,null,null,null,null,null,null,null,null,null,"Prestup"]
[null,null,null,null,null,null,null,null,null,null,null,null,"X        --- ak malo družstvo prestup"]
[]
[null,null,null,null,null,null,null,null,null,null,null,null,"TIP: Ak potrebujete do tabuľky pridať nový riadok, presuňte sa do stĺpca \"H\" posledného riadku a stačte klávesu TAB."]